Cogmind - Beta 14 *** ADVENTURER MODE // 2025.03.03 @ 07:46:33 // Winter2019/RPGLIKE Player: Gallgagger Result: Self-destructed Performance ------------- Evolutions (9) 4500 Regions Visited (29) 5800 Robots Destroyed (438) 2190 Value Destroyed (26109) 26109 Prototype IDs (80) 1600 Alien Tech Used (7) 1400 Bonus (26631) 26631 TOTAL SCORE: 68230 Bonus ------- Triggered High Security 1000 High Alert Combat Kills 10782 Follower Combat Kills 7285 Network Hubs Disabled 800 Registered with UFD 300 Met Imprinter 300 Destroyed Z-Imprinter 1000 Triggered Deep Caves Wall 500 Exposed GOLEM Chamber 500 Met Warlord at Base 500 MAIN.C Attacked Warlord 500 Warlord Defense Kills 220 Met R17 at Cetus 500 Met R17 at Research 2000 Met Sigix 2000 Friendly Fire -1556 Cogmind --------- Core Integrity 56/1650 Matter 300/300 Energy 1413/1950 System Corruption 2% Temperature Cool (0) Movement Hovering (77) Ox1 Location -1/Command Parts ------- > --- POWER (3) -------- Improved Quantum Reactor Vortex Chain Reactor > --- PROPULSION (5) --- Assembled Alloy Leg Cooled Antigrav System Cooled Antigrav System Cooled Antigrav System Experimental Gyrokinetic Inverter > --- UTILITY (14) ----- Assembled Biocell Array Zionite Metafield Generator Triangulator Advanced Salvage Targeting Computer Experimental Core Analyzer Experimental Core Analyzer Improved Armor Integrity Analyzer Advanced Force Field GOLEM Unit > --- WEAPON (3) ------- Hypervelocity EM Gauss Rifle Assembled Focal Cannon > --- INVENTORY (3) ---- Advanced Cloaking Device Peak State ------------ > --- POWER ------------ Improved Quantum Reactor Vortex Chain Reactor > --- PROPULSION ------- Zionite Glidesys II Cooled Antigrav System Cooled Antigrav System Cooled Antigrav System Experimental Gyrokinetic Inverter > --- UTILITY ---------- Assembled Biocell Array Assembled Suspension Frame Zionite Metafield Generator Experimental Core Analyzer Improved Armor Integrity Analyzer Advanced Particle Charger Advanced Weapon Cycler Experimental Reaction Control System Experimental Phase Shifter Assembled Alloy Armor GOLEM Unit Amulet of Y3-NDR > --- WEAPON ----------- Hypervelocity EM Gauss Rifle Improved Potential Cannon > --- INVENTORY -------- Long-range Sensor Array Experimental EM Disruption Field Subatomic Replicator [Rating: 223] Favorites ----------- Power Zionite Light DM Reactor Engine Ion Engine Power Core Light Nuclear Core Reactor Zionite Light DM Reactor Propulsion Wheel Leg Assembled Alloy Leg Wheel Wheel Hover Unit Cooled Antigrav System Utility Assembled Nanovents Device Assembled Nanovents Storage Assembled Biocell Array Processor Improved Target Analyzer Protection Assembled Alloy Armor Artifact Core Physics Calibrator Weapon Zionite Phaser-S Energy Gun Zionite Phaser-S Energy Cannon Assembled Focal Cannon Ballistic Gun Hypervelocity Gauss Rifle Special Weapon CPS Tube Slashing Weapon Makeshift Sword Build | -11 -10 -10 -8 -8 -6 -6 -6 -6 -6 -5 -5 -5 -5 -5 -4 -4 -4 -4 -4 -4 -4 -4 -3 -3 -3 -2 -2 -1 -1 ------- Run | Yrd Mat Sub Rec Scr Fac Low Low Zio Dee Pro Fac Upp Upp War Pro Fac Was Fac Ext Cet Arc Hub Res Qua Sec Res Tes Acc Com Slots Evolved 21 | 4 1 3 2 . 1 3 1 . . 1 . . . 1 . . . . 1 1 . 1 . . . . . . 1 Power 2 | 1 . . . . . . . . . . . . . . . . . . . 1 . . . . . . . . . Propulsion 4 | 1 . 1 1 . . . . . . . . . . . . . . . . . . 1 . . . . . . . Utility 13 | 1 1 2 1 . 1 2 1 . . 1 . . . 1 . . . . 1 . . . . . . . . . 1 Weapon 2 | 1 . . . . . 1 . . . . . . . . . . . . . . . . . . . . . . . Parts Attached 256 | 6 11 8 9 18 4 9 3 . 59 1 . . 1 6 . . . 4 1 4 . 10 26 11 15 4 12 . 34 Power 19 | 2 1 . . 3 2 . . . 5 . . . . 1 . . . . . 1 . . 3 . 1 . . . . Engine 2 | 2 . . . . . . . . . . . . . . . . . . . . . . . . . . . . . Core 6 | . 1 . . 3 2 . . . . . . . . . . . . . . . . . . . . . . . . Reactor 11 | . . . . . . . . . 5 . . . . 1 . . . . . 1 . . 3 . 1 . . . . Propulsion 58 | 2 . 1 7 4 . 1 2 . 15 . . . . 2 . . . 2 . . . 1 7 3 3 3 . . 5 Treads . | . . . . . . . . . . . . . . . . . . . . . . . . . . . . . . Leg 3 | . . 1 . . . . . . 2 . . . . . . . . . . . . . . . . . . . . Wheel 16 | 2 . . 7 4 . 1 2 . . . . . . . . . . . . . . . . . . . . . . Hover 39 | . . . . . . . . . 13 . . . . 2 . . . 2 . . . 1 7 3 3 3 . . 5 Flight . | . . . . . . . . . . . . . . . . . . . . . . . . . . . . . . Utility 114 | . 4 4 2 7 1 3 1 . 23 1 . . . 3 . . . . 1 1 . 9 16 6 8 1 2 . 21 Device 84 | . 4 2 1 5 . . 1 . 13 . . . . 2 . . . . . 1 . 8 15 5 7 1 2 . 17 Storage 6 | . . 1 1 1 . . . . 3 . . . . . . . . . . . . . . . . . . . . Processor 14 | . . . . 1 1 2 . . . 1 . . . 1 . . . . 1 . . 1 1 1 . . . . 4 Hackware . | . . . . . . . . . . . . . . . . . . . . . . . . . . . . . . Protection 9 | . . 1 . . . 1 . . 7 . . . . . . . . . . . . . . . . . . . . Artifact 1 | . . . . . . . . . . . . . . . . . . . . . . . . . 1 . . . . Weapon 65 | 2 6 3 . 4 1 5 . . 16 . . . 1 . . . . 2 . 2 . . . 2 3 . 10 . 8 Energy Gun 39 | 2 2 . . . . . . . 14 . . . . . . . . 2 . 2 . . . 2 3 . 7 . 5 Energy Cannon 6 | . 3 . . . . . . . . . . . . . . . . . . . . . . . . . 3 . . Ballistic Gun 9 | . 1 . . 3 1 3 . . 1 . . . . . . . . . . . . . . . . . . . . Ballistic Cannon . | . . . . . . . . . . . . . . . . . . . . . . . . . . . . . . Launcher . | . . . . . . . . . . . . . . . . . . . . . . . . . . . . . . Special Weapon 8 | . . . . 1 . 2 . . 1 . . . 1 . . . . . . . . . . . . . . . 3 Impact Weapon . | . . . . . . . . . . . . . . . . . . . . . . . . . . . . . . Slashing Weapon 3 | . . 3 . . . . . . . . . . . . . . . . . . . . . . . . . . . Piercing Weapon . | . . . . . . . . . . . . . . . . . . . . . . . . . . . . . . Special Melee Weapon . | . . . . . . . . . . . . . . . . . . . . . . . . . . . . . . Unidentified Prototypes 51 | . . 2 . . . 1 1 . 14 . . . 1 5 . . . . . 1 . 1 7 2 7 1 5 . 3 Parts Lost 9 | . . . . . . . . . 6 . . . . . . . . . . . . . . . . . . . 3 Power . | . . . . . . . . . . . . . . . . . . . . . . . . . . . . . . Propulsion 2 | . . . . . . . . . 1 . . . . . . . . . . . . . . . . . . . 1 Utility 7 | . . . . . . . . . 5 . . . . . . . . . . . . . . . . . . . 2 Weapon . | . . . . . . . . . . . . . . . . . . . . . . . . . . . . . . Highest Loss Streak 2 | . . . . . . . . . 2 . . . . . . . . . . . . . . . . . . . 2 To Critical Strikes 1 | . . . . . . . . . 1 . . . . . . . . . . . . . . . . . . . . Average Slot Usage (%) 87 | . 98 63 78 83 92 87 88 89 90 94 95 95 91 87 85 85 85 88 89 90 91 91 90 91 90 91 91 91 91 Engine 2 | . 18 7 7 4 . . . . . . . . . . . . . . . . . . . . . . . . . Core 4 | . 5 7 7 9 13 11 10 10 1 . . . . . . . . . . . . . . . . . . . . Reactor 4 | . . . . . . . . . 8 10 10 10 10 7 4 4 4 4 4 6 8 8 7 8 8 8 8 8 8 Leg 2 | . . 6 2 . . . . . 7 . . . . . . . . . . . . . . . 1 . . . . Wheel 9 | . 23 . 17 28 26 24 21 21 3 . . . . . . . . . . . . . . . . . . . . Hover 8 | . . . . . . . . . 7 20 20 20 20 19 19 19 19 19 18 17 17 18 20 20 18 20 20 20 19 Device 25 | . 27 18 17 17 26 12 14 15 24 34 40 40 40 39 38 38 38 38 37 34 34 33 32 33 32 33 33 33 30 Storage 4 | . . . 3 6 6 5 5 5 4 5 5 5 5 4 4 4 4 4 4 4 4 4 4 4 4 4 4 4 4 Processor 6 | . . . . 1 3 11 15 15 10 2 . . . 1 4 4 4 4 5 8 8 8 8 8 8 8 8 8 13 Protection 4 | . . 7 7 3 . 5 5 5 4 5 5 5 5 4 4 4 4 4 4 4 4 4 4 4 4 4 4 4 3 Energy Gun 4 | . 15 . . . . . . . 5 10 10 10 3 . . . . 7 9 8 8 8 8 8 9 8 11 12 8 Energy Cannon 2 | . 4 . . . . . . . 6 5 5 5 5 4 4 4 4 4 4 4 4 4 4 4 2 4 . . 1 Ballistic Gun 2 | . 3 . . 5 12 11 10 10 1 . . . . . . . . . . . . . . . . . . . . Special Weapon 1 | . . . . 1 1 1 5 5 . . . . 3 4 4 4 4 . . . . . . . . . . . 1 Slashing Weapon 2 | . . 14 14 4 . . . . . . . . . . . . . . . . . . . . . . . . . Peak Build Rating 223 | 6 16 41 42 43 47 64 72 72 158 163 163 163 168 189 189 189 189 189 193 201 200 209 208 209 215 212 223 211 218 Average Rating 113 | 4 12 39 33 32 45 59 71 72 127 155 163 163 166 174 189 189 189 184 185 195 200 203 205 207 207 210 211 211 213 On Entrance 139 | . 6 16 41 30 42 47 64 72 72 150 163 163 163 168 189 189 189 189 184 191 200 200 205 207 208 209 212 211 211 Naked Turns . | . . . . . . . . . . . . . . . . . . . . . . . . . . . . . . Heaviest Build 249 | 12 19 35 234 240 235 249 243 243 244 64 64 64 64 75 74 74 74 83 78 97 97 101 101 111 101 98 104 89 127 Greatest Support 124 | 20 20 55 62 62 61 61 66 66 124 80 80 80 80 80 78 78 78 78 78 98 98 108 114 111 116 119 119 119 119 Greatest Overweight (x) 7 | . . 1 6 7 3 5 4 3 3 . . . . . . . . 1 . . . 1 . 1 1 . . . 1 Average Overweight (x) . | . . . 1 2 3 3 3 3 . . . . . . . . . . . . . . . . . . . . . Largest Inventory Capacity 32 | . . 31 32 32 32 32 32 32 32 2 2 2 2 2 2 2 2 2 2 2 2 2 2 3 3 3 3 3 3 Average Capacity 11 | . . 1 18 31 32 32 32 32 6 2 2 2 2 2 2 2 2 2 2 2 2 2 2 2 3 3 3 3 3 Most Carried 32 | . . 2 9 24 25 32 32 32 32 2 2 2 2 2 2 2 2 2 . 2 . 2 2 3 3 3 3 3 3 Average Carried 8 | . . 1 4 12 24 29 31 31 5 2 2 2 1 2 2 2 2 . . . . . 1 2 3 3 3 3 2 Final Capacity 32 | . . 2 32 32 32 32 32 32 2 2 2 2 2 2 2 2 2 2 2 2 2 2 2 3 3 3 3 3 3 Final Carried 32 | . . 2 9 24 25 32 32 32 2 2 2 2 2 2 2 2 2 . . . . 1 2 3 3 3 3 3 1 Class Distribution -------------------- 18% | Scavenger-Sprinter 14% | Hacker-Sprinter 11% | Hauler-Gunner 11% | Scavenger-Golem 10% | Gladiator 9% | Hauler-Mutant 5% | Commander-Sprinter 5% | Hauler-Gladiator 5% | Hauler-Skirmisher 4% | Mutant Dominant Class ---------------- Mutant | -10/Materials Gladiator | -10/Subcaves Hauler-Gladiator | -8/Recycling Hauler-Mutant | -8/Scraptown Hauler-Skirmisher | -6/Factory Hauler-Mutant | -6/Lower Caves Hauler-Gunner | -6/Lower Caves Hauler-Gunner | -6/Zion Scavenger-Golem | -6/Deep Caves Scavenger-Sprinter | -5/Proximity Caves Scavenger-Sprinter | -5/Factory Scavenger-Sprinter | -5/Upper Caves Scavenger-Sprinter | -5/Upper Caves Scavenger-Sprinter | -5/Warlord Commander-Sprinter | -4/Proximity Caves Commander-Sprinter | -4/Factory Hacker-Sprinter | -4/Waste Hacker-Sprinter | -4/Factory Hacker-Sprinter | -4/Extension Commander-Sprinter | -4/Cetus Commander-Sprinter | -4/Archives Scavenger-Sprinter | -4/Hub_04(d) Scavenger-Sprinter | -3/Research Hacker-Sprinter | -3/Quarantine Hacker-Sprinter | -3/Section 7 Hacker-Sprinter | -2/Research Hacker-Sprinter | -2/Testing Hacker-Sprinter | -1/Access Hacker-Sprinter | -1/Command Resources | -11 -10 -10 -8 -8 -6 -6 -6 -6 -6 -5 -5 -5 -5 -5 -4 -4 -4 -4 -4 -4 -4 -4 -3 -3 -3 -2 -2 -1 -1 ----------- Run | Yrd Mat Sub Rec Scr Fac Low Low Zio Dee Pro Fac Upp Upp War Pro Fac Was Fac Ext Cet Arc Hub Res Qua Sec Res Tes Acc Com Matter Collected 4875 | 260 206 86 90 70 636 469 124 10 865 10 . 15 60 40 140 . . 153 15 55 . 158 265 123 237 40 120 . 628 Remotely . | . . . . . . . . . . . . . . . . . . . . . . . . . . . . . . Salvage Created 26161 | . 1159 75 1241 . 947 264 33 . 2707 633 1371 593 170 86 338 126 . 737 2105 351 . 1758 3686 1247 2056 694 492 613 2679 Parts 1411 | . 70 3 31 . 59 23 7 . 104 49 72 30 14 3 22 7 . 49 81 18 12 110 168 75 141 39 23 36 165 Haulers Intercepted 1 | . . . . . . . . . . . 1 . . . . . . . . . . . . . . . . . . Recyclers Shooed 9 | . 1 . 3 . 3 . . . . . . . . . . . . . 1 . . . . 1 . . . . . Parts Field Recycled . | . . . . . . . . . . . . . . . . . . . . . . . . . . . . . . Retrieved Matter . | . . . . . . . . . . . . . . . . . . . . . . . . . . . . . . Parts Self-Destructed 192 | . . 7 . . . 22 17 7 . 69 . 26 32 . 12 . . . . . . . . . . . . . . Prevented 62 | . . . . . . 3 11 . . 19 . 10 17 . 2 . . . . . . . . . . . . . . Kills | -11 -10 -10 -8 -8 -6 -6 -6 -6 -6 -5 -5 -5 -5 -5 -4 -4 -4 -4 -4 -4 -4 -4 -3 -3 -3 -2 -2 -1 -1 ------- Run | Yrd Mat Sub Rec Scr Fac Low Low Zio Dee Pro Fac Upp Upp War Pro Fac Was Fac Ext Cet Arc Hub Res Qua Sec Res Tes Acc Com Combat Hostiles Destroyed 419 | . 31 1 2 . 19 7 1 . 67 12 17 11 6 1 8 2 . 13 26 4 3 27 48 11 34 11 3 11 43 Melee 3 | . . 1 2 . . . . . . . . . . . . . . . . . . . . . . . . . . Guns 285 | . 21 . . . 19 7 1 . 46 11 10 7 . . . . . 12 18 2 1 24 28 7 26 7 3 11 24 Cannons 107 | . 8 . . . . . . . 20 1 5 4 5 . 1 . . 1 8 2 2 3 20 2 8 4 . . 13 AOE 11 | . 1 . . . . . . . . . 2 . . . . . . . . . . . . 2 . . . . 6 Classes Destroyed 32 | . 3 2 3 . 3 2 . . 4 2 4 . . 1 . . . . . . . 2 2 2 1 . . . 1 Worker 3 | . . . . . . . . . . . 1 . . . . . . . . . . . . 1 1 . . . . Builder 6 | . . . 1 . . . . . . . 1 . . . . . . . . . . . 1 2 . . . 1 . Hauler 1 | . . . . . . . . . . . 1 . . . . . . . . . . . . . . . . . . Recycler 16 | . . . 9 . . . . . . . . . . . . . . . 2 . . . 3 2 . . . . . Carrier 1 | . . . . . . . . . . . . . . . . . . . . . . . 1 . . . . . . Minesweeper 3 | . . . . . . 2 1 . . . . . . . . . . . . . . . . . . . . . . Mechanic 1 | . . . . . . . . . . . . . . . . . . . . . . . . . 1 . . . . Operator 12 | . . . . . . . . . . . 1 . . . . . . . 2 . . 3 3 1 . . 2 . . Turret 1 | . . 1 . . . . . . . . . . . . . . . . . . . . . . . . . . . Watcher 29 | . 3 . . . 1 . . . . . 4 . . . . . . 1 2 2 . 2 4 2 3 1 1 1 2 Swarmer 54 | . 3 . . . . 2 . . . 2 2 9 1 . 4 . . . 3 . . . 7 . 3 2 . 4 12 Cutter 4 | . . . . . . . . . . . . . . . . . . . . . . . . . . . . . 4 Saboteur 1 | . . . . . . . . . . . . . . . . . . . . . . 1 . . . . . . . Grunt 135 | . 28 . . . 9 3 . . . 2 6 1 3 . 1 . . 5 11 . . 12 25 4 17 1 1 6 . Brawler 9 | . . . 1 . 1 . . . . 2 . . . . . . . 1 1 . . . 1 . 1 . . 1 . Duelist 5 | . . . . . 1 1 . . . 1 . . . . . . . . . . . 1 1 . . . . . . Protector 3 | . . . . . . . . . . 1 . . . . . . . 1 . . . . . 1 . . . . . Researcher 5 | . . . . . . . . . . . . . . . . . . . . . . . . 1 4 . . . . Sentry 42 | . . 1 1 . . . 1 . . 1 3 . . . . . . . 7 . 3 6 6 . 7 3 . . 3 Demolisher 1 | . . . . . . . . . . . . . . . . . . . . . . . 1 . . . . . . Specialist 1 | . . . . . . . . . . . 1 . . . . . . . . . . . . . . . . . . Hunter 40 | . . . . . 6 . . . . 1 1 . 2 . . . . 6 2 . . 5 1 2 . 4 2 . 8 Programmer 15 | . . . . . 2 . . . . 1 3 . . . . 2 . . . . . . 2 . 3 . . . 2 Heavy 3 | . . . . . . . . . . . . . . . . . . . . . . 1 . . 1 1 . . . Behemoth 9 | . . . . . . . . . . 1 1 1 . . . . . . 2 . . 1 2 . . . . . 1 Cetus Guard 4 | . . . . . . . . . . . . . . . . . . . . 4 . . . . . . . . . S7 Guard 2 | . . . . . . . . . . . . . . . . . . . . . . . . . 2 . . . . Lightning 3 | . . . . . . . . . . . . . . . . . . . . . . . . 3 . . . . . Striker 3 | . . . . . . . . . . . . . . 1 . . . . . . . . 2 . . . . . . Fortress 1 | . . . . . . . . . . . . . . . . . . . . . . . . 1 . . . . . Z-Light 9 | . . . . . . . . . 9 . . . . . . . . . . . . . . . . . . . . Assembler 2 | . . . . . . . . . 2 . . . . . . . . . . . . . . . . . . . . Assembled 28 | . . . . . . . . . 28 . . . . . . . . . . . . . . . . . . . . Golem 29 | . . . . . . . . . 29 . . . . . . . . . . . . . . . . . . . . Thug 5 | . . . . . . . . . . . . . . . 2 . . . . . . . . . . . . . 3 Savage 3 | . . . . . . . . . . . . . . . . . . . . . . . . . . . . . 3 Guerrilla 2 | . . . . . . . . . . . . . . . . . . . . . . . . . . . . . 2 Wizard 4 | . . . . . . . . . . . . . . . . . . 1 . . . . . . . . . . 3 Mutant 5 | . . . . . . 1 . . 1 . . . . . 1 . . . . . . . . . . . . . 2 Best Kill Streak 24 | . 4 2 2 . 6 4 1 . 11 4 6 4 3 1 4 2 . 5 7 3 3 8 7 10 24 5 2 12 9 Combat Bots Only 14 | . 4 1 1 . 6 4 1 . 9 4 4 4 3 1 4 2 . 5 6 3 3 8 7 8 14 5 2 11 9 Max Kills in Single Turn 3 | . 2 1 1 . 1 2 1 . 2 1 2 1 1 1 1 1 . 1 2 1 1 1 2 3 2 1 1 2 2 Gunslinging 1 | . 1 . . . . 1 . . 1 . . . . . . . . . . . . . 1 . 1 . . 1 . Exploded 2 | . 1 . . . . . . . . . 2 . . . . . . . . . . . . 2 . . . . 2 Melee 1 | . . 1 1 . . . . . . . . . . . . . . . . . . . . . . . . . . Uniques/NPCs Destroyed 1 | . . . . . . . . . 1 . . . . . . . . . . . . . . . . . . . . Z-Imprinter (-6/Deep Caves) Combat | -11 -10 -10 -8 -8 -6 -6 -6 -6 -6 -5 -5 -5 -5 -5 -4 -4 -4 -4 -4 -4 -4 -4 -3 -3 -3 -2 -2 -1 -1 -------- Run | Yrd Mat Sub Rec Scr Fac Low Low Zio Dee Pro Fac Upp Upp War Pro Fac Was Fac Ext Cet Arc Hub Res Qua Sec Res Tes Acc Com Hostile Shots Fired 3014 | . 101 19 5 . 174 37 12 . 394 69 148 50 69 23 69 32 . 119 102 34 5 172 147 70 208 72 17 63 803 Missed 1781 | . 25 10 2 . 55 10 4 . 166 42 116 29 39 18 55 27 . 95 67 24 4 130 111 43 160 48 10 45 446 Damage Taken 17687 | . 669 131 43 . 1141 272 47 . 5151 409 482 229 409 69 169 51 . 495 547 164 16 604 546 715 706 633 103 304 3582 Core 13191 | . 538 60 24 . 887 169 20 . 3735 301 377 176 337 54 131 40 . 364 409 121 12 460 420 556 521 511 81 224 2663 Absorbed by Shields 1893 | . . . . . 421 102 18 . 318 . . . . 5 . 12 . . . . . . . . . . . . 1017 Redirected to Core 11159 | . 407 51 24 . 765 147 20 . 3061 265 335 129 200 54 78 34 . 341 388 121 12 403 366 503 479 420 81 224 2251 Redirected to Shielding 114 | . . . . . . . . . 114 . . . . . . . . . . . . . . . . . . . . Ignored by Resistances 9670 | . 208 28 12 . 448 105 21 . 2040 245 289 143 241 42 104 38 . 291 307 95 10 356 323 404 415 358 60 178 2909 Regen/Repaired (Parts) 174 | . . . . . . . . . . . . . . . . . . . . . . . . . 149 . . . 25 Core Remaining (%) 94 | 100 . . . 100 . . . . . 100 . . . . 100 . . . . . . 96 . . 97 . 71 . . Volleys Fired 1704 | . 79 2 . . 73 27 8 . 310 38 72 22 25 37 18 8 . 57 57 17 6 71 119 63 82 34 26 28 425 Largest 3 | . 2 2 . . 2 2 2 . 3 3 3 2 2 2 2 1 . 3 3 2 3 3 3 3 3 3 3 3 3 Hottest 193 | . 100 85 . . 63 66 66 . 193 145 145 120 85 25 25 . . 145 145 120 145 145 145 145 185 145 160 160 160 Shots Fired 3634 | . 158 4 . . 132 53 15 . 576 86 139 44 43 44 27 8 . 114 163 34 18 201 333 148 229 98 54 73 840 Gun 2709 | . 126 2 . . 132 53 15 . 369 76 105 33 12 . . . . 91 113 21 12 138 230 122 177 68 54 73 687 Cannon 853 | . 32 2 . . . . . . 203 10 34 11 23 32 15 . . 13 50 13 6 63 103 26 52 30 . . 135 Launcher . | . . . . . . . . . . . . . . . . . . . . . . . . . . . . . . Special 72 | . . . . . . . . . 4 . . . 8 12 12 8 . 10 . . . . . . . . . . 18 Kinetic 294 | . 32 2 . . 132 53 15 . 60 . . . . . . . . . . . . . . . . . . . . Thermal 973 | . 94 2 . . . . . . 261 10 34 11 23 32 15 . . 13 50 13 6 63 103 26 52 30 . . 135 Explosive . | . . . . . . . . . . . . . . . . . . . . . . . . . . . . . . Electromagnetic 628 | . 32 . . . . . . . . . . . . . . . . . . . . . . . 20 . 12 22 542 Phasic 1667 | . . . . . . . . . 251 76 105 33 12 . . . . 91 113 21 12 138 230 122 157 68 42 51 145 Robot Hit Streak 87 | . 16 . . . 24 22 7 . 69 32 28 17 24 15 14 5 . 28 61 23 10 42 56 32 55 31 25 28 87 Robot Miss Streak 5 | . 2 . . . 3 2 1 . 5 3 2 2 1 1 1 1 . 3 1 1 1 2 2 2 2 3 1 1 2 Penetration Max 2 | . . . . . 2 1 . . 2 . . . . . . . . . . . . . . . . . . 1 2 Secondary Targets 31 | . 3 . . . . 2 . . 8 2 1 1 . . . . . . . 1 . . 2 . 4 1 . 4 2 Max Gunslinging Chain 1 | . 1 . . . . 1 . . 1 1 1 1 . . . . . . . 1 . . 1 . 1 1 . 1 1 Shots Hit Robots 2695 | . 120 4 32 . 111 43 11 . 452 75 113 33 34 20 23 6 . 89 128 30 15 133 241 101 167 81 31 56 546 Core Hits 1217 | . 54 1 11 . 58 26 6 . 232 30 44 14 8 4 5 . . 38 53 15 9 57 103 56 93 24 13 34 229 Critical Kills 30 | . . . . . 12 7 2 . 9 . . . . . . . . . . . . . . . . . . . . Critical Parts Destroyed 45 | . 1 . . . 20 13 5 . 6 . . . . . . . . . . . . . . . . . . . . Critical Strikes 191 | . 1 . 1 . 33 20 7 . 51 9 4 2 2 . . . . 5 4 2 . 7 6 11 11 5 2 1 7 Destroy 83 | . 1 . . . 33 20 7 . 22 . . . . . . . . . . . . . . . . . . . . Sever 1 | . . . 1 . . . . . . . . . . . . . . . . . . . . . . . . . . Intensify 107 | . . . . . . . . . 29 9 4 2 2 . . . . 5 4 2 . 7 6 11 11 5 2 1 7 Melee Attacks 82 | . . 49 33 . . . . . . . . . . . . . . . . . . . . . . . . . . Impact . | . . . . . . . . . . . . . . . . . . . . . . . . . . . . . . Slashing 82 | . . 49 33 . . . . . . . . . . . . . . . . . . . . . . . . . . Piercing . | . . . . . . . . . . . . . . . . . . . . . . . . . . . . . . Sneak Attacks 12 | . . 1 11 . . . . . . . . . . . . . . . . . . . . . . . . . . Combat Hostiles 1 | . . . 1 . . . . . . . . . . . . . . . . . . . . . . . . . . Follow-up Attacks 2 | . . . 2 . . . . . . . . . . . . . . . . . . . . . . . . . . Damage Inflicted 87648 | . 1881 110 1998 . 1569 352 78 . 15688 2568 4704 1283 1298 394 527 . . 2892 4954 1221 618 5140 11652 5296 7707 3993 925 1840 8960 Guns 54815 | . 1296 . . . 1569 352 78 . 8852 2211 2937 894 363 . . . . 2418 3234 660 330 3452 7421 3977 5430 2419 925 1645 4352 Cannons 28198 | . 472 . . . . . . . 6836 357 1389 389 935 394 527 . . 474 1672 561 288 1688 4231 830 2277 1574 . . 3304 Explosions 2479 | . 113 . . . . . . . . . 378 . . . . . . . . . . . . 489 . . . 195 1304 Melee 2108 | . . 110 1998 . . . . . . . . . . . . . . . . . . . . . . . . . . Ramming 48 | . . . . . . . . . . . . . . . . . . . 48 . . . . . . . . . . Kinetic 2714 | . 367 . . . 1569 352 78 . 348 . . . . . . . . . . . . . . . . . . . . Thermal 31605 | . 1145 . . . . . . . 8311 357 1483 389 935 394 527 . . 474 1672 561 288 1688 4231 830 2277 1574 . 195 4274 Explosive 773 | . . . . . . . . . . . 284 . . . . . . . . . . . . 489 . . . . . Electromagnetic 1737 | . 369 . . . . . . . . . . . . . . . . . . . . . . . 301 . 23 46 998 Impact . | . . . . . . . . . . . . . . . . . . . . . . . . . . . . . . Slashing 2108 | . . 110 1998 . . . . . . . . . . . . . . . . . . . . . . . . . . Piercing . | . . . . . . . . . . . . . . . . . . . . . . . . . . . . . . Phasic 48663 | . . . . . . . . . 7029 2211 2937 894 363 . . . . 2418 3234 660 330 3452 7421 3977 5129 2419 902 1599 3688 Highest Corruption 6 | . . . . . . 1 1 1 . . 1 1 1 1 . 1 6 6 6 6 6 6 2 4 5 . . 1 2 Average Corruption 2 | . . . . . . 1 1 1 . . 1 1 1 1 . 1 3 6 6 6 6 6 2 3 4 . . 1 1 Corruption Purged . | . . . . . . . . . . . . . . . . . . . . . . . . . . . . . . Corruption Blocked . | . . . . . . . . . . . . . . . . . . . . . . . . . . . . . . Effects 185 | . . . . . . 1 11 . . . 2 9 4 . . . 2 15 19 6 2 19 12 10 20 . . 2 51 Message Errors 44 | . . . . . . . 3 . . . . 3 2 . . . . 6 5 1 1 3 1 3 4 . . . 12 Matter Fused 41 | . . . . . . . 4 . . . . 3 . . . . 1 2 1 3 1 5 2 1 5 . . . 13 Heat Flow Errors 19 | . . . . . . . . . . . . . 1 . . . . 2 4 . . 5 1 2 . . . 1 3 Energy Discharges 14 | . . . . . . . 1 . . . . . . . . . 1 2 1 2 . 2 2 . 1 . . . 2 Parts Rejected 4 | . . . . . . . . . . . . . . . . . . 1 . . . . . . 1 . . . 2 Parts Fused 3 | . . . . . . . . . . . . . . . . . . . . . . . 1 . 1 . . . 1 Data Loss (minor) 26 | . . . . . . . 1 . . . . . . . . . . . 6 . . 2 1 2 6 . . . 8 Data Loss (major) 11 | . . . . . . 1 1 . . . 2 . . . . . . 1 1 . . . . . 2 . . . 3 Misfires 8 | . . . . . . . . . . . . 1 1 . . . . 1 . . . . 2 1 . . . . 2 Alerts 1 | . . . . . . . . . . . . 1 . . . . . . . . . . . . . . . . . Weapon Failures 14 | . . . . . . . 1 . . . . 1 . . . . . . 1 . . 2 2 1 . . . 1 5 Overload Shots . | . . . . . . . . . . . . . . . . . . . . . . . . . . . . . . Overflow Damage 2064 | . 13 26 617 . . . . . 88 . 182 24 33 . . . . . 181 35 9 74 308 124 118 63 . 17 152 Projectiles 1126 | . 13 . . . . . . . 88 . 118 24 33 . . . . . 181 35 9 74 308 . 118 63 . . 62 Explosions 295 | . . . . . . . . . . . 64 . . . . . . . . . . . . 124 . . . 17 90 Melee 643 | . . 26 617 . . . . . . . . . . . . . . . . . . . . . . . . . . Knockbacks 1 | . . . . . . . . . . . . . . . . . . . 1 . . . . . . . . . . Impact 1 | . . . . . . . . . . . . . . . . . . . 1 . . . . . . . . . . Kinetic . | . . . . . . . . . . . . . . . . . . . . . . . . . . . . . . Secondary . | . . . . . . . . . . . . . . . . . . . . . . . . . . . . . . Self-Inflicted Damage 142 | . . . . . . . . . . . 55 . . . . . . . 24 . . . . . . . . . 63 Shots 3 | . . . . . . . . . . . 1 . . . . . . . . . . . . . . . . . 2 Rammed 1 | . . . . . . . . . . . . . . . . . . . 1 . . . . . . . . . . Targets Rammed 1 | . . . . . . . . . . . . . . . . . . . 1 . . . . . . . . . . Kicked . | . . . . . . . . . . . . . . . . . . . . . . . . . . . . . . Crushed . | . . . . . . . . . . . . . . . . . . . . . . . . . . . . . . Highest Temperature 429 | . 429 . . . . . . . 381 54 . . 166 . . . . 181 152 . . 149 306 201 117 27 44 165 277 Average Temperature 62 | . 220 . . . . . . . 100 19 . . 88 . . . . 94 80 . . 75 77 106 34 11 25 30 26 Received Heat Transfer 3909 | . 444 39 27 . 206 36 24 . 1435 180 168 21 48 18 106 . . 81 132 9 . 201 163 63 210 36 9 18 235 Effects 4 | . 2 . . . . . . . . . . . . . . . . . . . . . 2 . . . . . . Shutdowns 1 | . 1 . . . . . . . . . . . . . . . . . . . . . . . . . . . . Energy Bleed 2 | . 1 . . . . . . . . . . . . . . . . . . . . . 1 . . . . . . Damage (minor) 1 | . . . . . . . . . . . . . . . . . . . . . . . 1 . . . . . . Siege Activations . | . . . . . . . . . . . . . . . . . . . . . . . . . . . . . . Robots Corrupted 1 | . . . . . . . . . . . . . . . . . . . . . . . . . . . . . 1 Combat Hostiles . | . . . . . . . . . . . . . . . . . . . . . . . . . . . . . . Parts Fried 7 | . . . . . . . . . . 1 1 . . . . . . 2 . . . . 1 . . . . . 2 Impact Corruptions . | . . . . . . . . . . . . . . . . . . . . . . . . . . . . . . Robots Melted 1 | . 1 . . . . . . . . . . . . . . . . . . . . . . . . . . . . Combat Hostiles 1 | . 1 . . . . . . . . . . . . . . . . . . . . . . . . . . . . Parts Melted 16 | . 7 . . . 2 . . . 2 1 1 . . . . . . . . . 1 . 2 . . . . . . Heat Transferred 18453 | . 2877 . . . . . . . 5259 199 658 200 475 212 300 . . 223 875 275 150 900 1881 284 850 600 . 100 2135 Parts Sabotaged . | . . . . . . . . . . . . . . . . . . . . . . . . . . . . . . Parts Stolen . | . . . . . . . . . . . . . . . . . . . . . . . . . . . . . . Parts Stripped . | . . . . . . . . . . . . . . . . . . . . . . . . . . . . . . Power Chain Reactions 21 | . 3 . . . . . . . . . . . . . . . . . . . . . . . . . . 1 17 Alert | -11 -10 -10 -8 -8 -6 -6 -6 -6 -6 -5 -5 -5 -5 -5 -4 -4 -4 -4 -4 -4 -4 -4 -3 -3 -3 -2 -2 -1 -1 ------- Run | Yrd Mat Sub Rec Scr Fac Low Low Zio Dee Pro Fac Upp Upp War Pro Fac Was Fac Ext Cet Arc Hub Res Qua Sec Res Tes Acc Com Peak Influence 2138 | . 590 . 263 . 267 . . . . . 1584 . . . . 507 178 1421 1454 925 471 1684 1763 1336 1835 2138 1118 975 1256 Initial 1100 | . . . . . . . . . . . 315 . . . . 133 148 109 507 708 311 137 765 786 569 1100 1100 300 548 Average 728 | . 256 . 80 . 121 . . . . . 988 . . . . 321 166 882 1093 894 439 963 1294 1125 1120 1587 752 533 860 Maximum Alert Level 5 | . 2 . 1 . 1 . . . . . 4 . . . . 2 . 4 4 3 2 5 5 4 5 5 4 3 4 Low Security (%) 22 | 100 37 . 86 . 81 . . . . . . . . . . 27 100 8 . . . 4 . . . . . . . Level 1 9 | . 46 . 13 . 18 . . . . . 10 . . . . 36 . 12 . . 21 5 . . . . . 25 . Level 2 14 | . 15 . . . . . . . . . 23 . . . . 36 . 12 11 . 78 24 8 . 6 . 35 47 24 Level 3 27 | . . . . . . . . . . . 12 . . . . . . 24 21 100 . 20 22 27 52 . 58 26 59 Level 4 22 | . . . . . . . . . . . 53 . . . . . . 41 66 . . 36 48 72 33 50 5 . 15 Level 5 3 | . . . . . . . . . . . . . . . . . . . . . . 8 20 . 5 . . . . High Security . | . . . . . . . . . . . . . . . . . . . . . . . . . 2 49 . . . Max Security . | . . . . . . . . . . . . . . . . . . . . . . . . . . . . . . Squads Dispatched 79 | . 10 . . . 6 . . . . 1 4 . 1 . . . . 7 2 . . 15 9 1 7 1 1 2 12 Investigation 34 | . 10 . . . 2 . . . . . . . 1 . . . . 2 1 . . 10 6 . . . . 1 1 Extermination 9 | . . . . . 2 . . . . . 1 . . . . . . . . . . . . . 1 . . . 5 Reinforcement 23 | . . . . . 2 . . . . . 1 . . . . . . 3 1 . . 3 3 1 5 1 1 1 1 Assault 12 | . . . . . . . . . . 1 2 . . . . . . 2 . . . 1 . . 1 . . . 5 Garrison 1 | . . . . . . . . . . . . . . . . . . . . . . 1 . . . . . . . Intercept . | . . . . . . . . . . . . . . . . . . . . . . . . . . . . . . Searches Triggered . | . . . . . . . . . . . . . . . . . . . . . . . . . . . . . . Construction Impeded 9 | . . . . . 2 . . . . . 1 . . . . . . 2 1 . . 1 1 . . . . 1 . Haulers Reinforced 2 | . . . . . . . . . . . . . . . . . . 1 . . . . . . 1 . . . . Active Scanning Responses . | . . . . . . . . . . . . . . . . . . . . . . . . . . . . . . Cargo Convoy Interrupts 1 | . . . . . . . . . . . 1 . . . . . . . . . . . . . . . . . . Stealth | -11 -10 -10 -8 -8 -6 -6 -6 -6 -6 -5 -5 -5 -5 -5 -4 -4 -4 -4 -4 -4 -4 -4 -3 -3 -3 -2 -2 -1 -1 --------- Run | Yrd Mat Sub Rec Scr Fac Low Low Zio Dee Pro Fac Upp Upp War Pro Fac Was Fac Ext Cet Arc Hub Res Qua Sec Res Tes Acc Com Distress Signals 41 | . . . . . 3 . . . . . 4 . . 1 . 2 . 1 2 2 . 1 9 2 2 1 . 3 8 Communications Jammed . | . . . . . . . . . . . . . . . . . . . . . . . . . . . . . . Distress Signals . | . . . . . . . . . . . . . . . . . . . . . . . . . . . . . . Times Spotted 1034 | . 36 16 5 . 40 11 10 . 104 26 49 14 20 24 17 6 6 38 35 10 5 58 66 18 104 29 12 26 249 Peak Tracking Total 37 | . 5 3 3 . 6 4 4 . 37 8 8 6 7 17 5 7 6 8 8 5 2 20 5 11 11 5 4 6 35 Tactical Retreats 47 | . 1 1 . . 7 4 1 . 12 1 2 . . . . . . 1 3 . . 2 . . 3 . . . 9 Traps | -11 -10 -10 -8 -8 -6 -6 -6 -6 -6 -5 -5 -5 -5 -5 -4 -4 -4 -4 -4 -4 -4 -4 -3 -3 -3 -2 -2 -1 -1 ------- Run | Yrd Mat Sub Rec Scr Fac Low Low Zio Dee Pro Fac Upp Upp War Pro Fac Was Fac Ext Cet Arc Hub Res Qua Sec Res Tes Acc Com Traps Triggered 25 | . 1 1 . . . . . . . . . . . . . 1 . 3 . . . 2 5 1 1 . . 1 9 Indirectly . | . . . . . . . . . . . . . . . . . . . . . . . . . . . . . . Trap Hack Attempts . | . . . . . . . . . . . . . . . . . . . . . . . . . . . . . . Triggered . | . . . . . . . . . . . . . . . . . . . . . . . . . . . . . . Disarmed . | . . . . . . . . . . . . . . . . . . . . . . . . . . . . . . Reprogrammed 2 | . . . . . . . . . . . . . . . . . . . . . . . . . . . . . 2 Reused 4 | . . . . . . . . . 4 . . . . . . . . . . . . . . . . . . . . Traps Extracted . | . . . . . . . . . . . . . . . . . . . . . . . . . . . . . . Installed 11 | . . . . . . . . . 11 . . . . . . . . . . . . . . . . . . . . Triggered 8 | . . . . . . 1 . . . . . . . 7 . . . . . . . . . . . . . . . Most Traps Carried 12 | . . . . 1 1 12 12 12 12 . . . . . . . . . . . . . . . . . . . . Machines | -11 -10 -10 -8 -8 -6 -6 -6 -6 -6 -5 -5 -5 -5 -5 -4 -4 -4 -4 -4 -4 -4 -4 -3 -3 -3 -2 -2 -1 -1 ---------- Run | Yrd Mat Sub Rec Scr Fac Low Low Zio Dee Pro Fac Upp Upp War Pro Fac Was Fac Ext Cet Arc Hub Res Qua Sec Res Tes Acc Com Machines Disabled 81 | . 1 5 . . 3 1 . . 4 1 7 . 2 . . 1 . 12 1 . 2 9 3 5 9 1 6 2 6 Max in Single Turn 5 | . 1 1 . . 1 1 . . 1 . 5 . 1 . . . . 1 1 . 1 1 1 1 1 . 1 1 2 Garrison Access 10 | . . . . . . . . . . . 1 . . . . . . 2 . . . 2 2 1 . 1 . 1 . Phase Generator 1 | . . . . . . . . . . . . . . . . . . . . . . . . . . . . . 1 Network Hub 4 | . . . . . . . . . . . . . . . . . . . . . . 4 . . . . . . . Energy Cycler 1 | . . . . . . . . . . . . . . . . . . . 1 . . . . . . . . . . Machines Repaired . | . . . . . . . . . . . . . . . . . . . . . . . . . . . . . . Machines Dismantled . | . . . . . . . . . . . . . . . . . . . . . . . . . . . . . . Machines Sabotaged 5 | . 1 . 1 . . . . . . . . . . . . . . . . . . 3 . . . . . . . Overloaded Fab Kills . | . . . . . . . . . . . . . . . . . . . . . . . . . . . . . . Hacking | -11 -10 -10 -8 -8 -6 -6 -6 -6 -6 -5 -5 -5 -5 -5 -4 -4 -4 -4 -4 -4 -4 -4 -3 -3 -3 -2 -2 -1 -1 --------- Run | Yrd Mat Sub Rec Scr Fac Low Low Zio Dee Pro Fac Upp Upp War Pro Fac Was Fac Ext Cet Arc Hub Res Qua Sec Res Tes Acc Com Machines Accessed 129 | . 9 1 8 3 4 . 2 . . . 10 . 2 2 1 1 . 6 9 . . 16 12 8 5 3 10 5 12 Terminals 95 | . 6 . 5 . 2 . . . . . 9 . 1 . 1 1 . 3 9 . . 14 6 7 5 2 10 4 10 Fabricators 4 | . . . . . 1 . . . . . . . . . . . . 1 . . . . 2 . . . . . . Repair Stations 2 | . 1 . . . . . . . . . . . . . . . . . . . . . . . . . . . 1 Recycling Units 8 | . 2 . 3 . . . . . . . . . . . . . . . . . . . 2 . . . . . 1 Scanalyzers . | . . . . . . . . . . . . . . . . . . . . . . . . . . . . . . Garrison Access 11 | . . . . . 1 . . . . . 1 . . . . . . 2 . . . 2 2 1 . 1 . 1 . Total Hacks 356 | . 23 5 14 21 7 . 2 . . . 27 . 5 2 1 2 . 15 14 . . 39 36 29 12 10 45 12 35 Successful 186 | . 16 5 12 21 2 . 2 . . . 7 . 5 2 1 1 . 5 7 . . 25 9 11 6 3 21 6 19 Failed 170 | . 7 . 2 . 5 . . . . . 20 . . . . 1 . 10 7 . . 14 27 18 6 7 24 6 16 Catastrophic 38 | . . . . . 1 . . . . . 2 . . . . 1 . 1 1 . . 2 6 5 1 1 9 1 7 Database Lockouts . | . . . . . . . . . . . . . . . . . . . . . . . . . . . . . . Manual 227 | . 23 . 13 . 4 . . 4 . . 24 . 1 . . . . 7 4 . . 28 22 23 5 8 25 9 27 Terminals 279 | . 18 . 9 . 4 . . . . . 26 . 4 . 1 2 . 9 14 . . 36 19 28 12 9 45 11 32 Fabricators 9 | . . . . . 1 . . . . . . . . . . . . 2 . . . . 6 . . . . . . Repair Stations 5 | . 3 . . . . . . . . . . . . . . . . . . . . . . . . . . . 2 Recycling Units 13 | . 2 . 5 . . . . . . . . . . . . . . . . . . . 5 . . . . . 1 Scanalyzers . | . . . . . . . . . . . . . . . . . . . . . . . . . . . . . . Garrison Access 19 | . . . . . 2 . . . . . 1 . . . . . . 4 . . . 3 6 1 . 1 . 1 . Terminal Hacks 97 | . 4 5 2 21 . . 2 . . . 3 . 5 2 1 1 . 2 5 . . 7 2 7 4 1 13 2 8 Record 37 | . . 5 . 20 . . . . . . . . 4 . 1 . . . 2 . . 2 . 1 . . . . 2 Part Schematic 4 | . . . . . . . . . . . . . . . . . . . . . . 1 . . . . 3 . . Robot Analysis 9 | . 4 . 1 . . . . . . . 1 . . . . 1 . . . . . 1 . . . . 1 . . Prototype ID Bank 5 | . . . . . . . . . . . . . . . . . . . 1 . . 1 1 . 1 . 1 . . Open Door 13 | . . . . . . . 2 . . . . . 1 2 . . . . 2 . . . . 1 2 . 1 2 . Open DSF 1 | . . . . . . . . . . . . . . . . . . 1 . . . . . . . . . . . Branch Access Points 5 | . . . . . . . . . . . . . . . . . . 1 . . . 1 1 1 . 1 . . . Terminal Index 1 | . . . . . . . . . . . . . . . . . . . . . . . . . . . . . 1 Repair Station Index 1 | . . . . . . . . . . . . . . . . . . . . . . . . . . . . . 1 Alert Level 4 | . . . 1 . . . . . . . . . . . . . . . . . . . . 1 1 . 1 . . Unreport Threat 6 | . . . . . . . . . . . . . . . . . . . . . . . . . . . 6 . . Locate Traps 5 | . . . . . . . . . . . . . . . . . . . . . . 1 . 3 . . . . 1 Reprogram Traps 1 | . . . . . . . . . . . . . . . . . . . . . . . . . . . . . 1 Hauler Manifests 2 | . . . . . . . . . . . 2 . . . . . . . . . . . . . . . . . . Derelict Proto ID Bank 1 | . . . . 1 . . . . . . . . . . . . . . . . . . . . . . . . . Disengage Seal 2 | . . . . . . . . . . . . . . . . . . . . . . . . . . . . . 2 Fabricator Hacks 4 | . . . . . 1 . . . . . . . . . . . . . . . . . 3 . . . . . . Load Schematic 1 | . . . . . . . . . . . . . . . . . . . . . . . 1 . . . . . . Build 3 | . . . . . 1 . . . . . . . . . . . . . . . . . 2 . . . . . . Repair Station Hacks 2 | . . . . . . . . . . . . . . . . . . . . . . . . . . . . . 2 Scan Component 1 | . . . . . . . . . . . . . . . . . . . . . . . . . . . . . 1 Repair 1 | . . . . . . . . . . . . . . . . . . . . . . . . . . . . . 1 Recycling Unit Hacks 2 | . . . 2 . . . . . . . . . . . . . . . . . . . . . . . . . . Report Inventory 1 | . . . 1 . . . . . . . . . . . . . . . . . . . . . . . . . . Retrieve Components 1 | . . . 1 . . . . . . . . . . . . . . . . . . . . . . . . . . Scanalyzer . | . . . . . . . . . . . . . . . . . . . . . . . . . . . . . . Garrison Access Hacks 8 | . . . . . . . . . . . 1 . . . . . . 1 . . . 1 2 1 . 1 . 1 . Seal Access 8 | . . . . . . . . . . . 1 . . . . . . 1 . . . 1 2 1 . 1 . 1 . Unauthorized Hacks 73 | . 12 . 8 . 1 . . . . . 3 . . . . . . 2 2 . . 17 2 3 2 1 8 3 9 Terminals 64 | . 9 . 5 . 1 . . . . . 3 . . . . . . 2 2 . . 17 . 3 2 1 8 3 8 Assimilate 1 | . . . . . . . . . . . . . . . . . . 1 . . . . . . . . . . . Botnet 43 | . 5 . 1 . 1 . . . . . 3 . . . . . . 1 2 . . 6 . 3 2 1 8 2 8 Operators 1 | . . . . . . . . . . . . . . . . . . . . . . 1 . . . . . . . Sabotage 18 | . 4 . 4 . . . . . . . . . . . . . . . . . . 10 . . . . . . . Search 1 | . . . . . . . . . . . . . . . . . . . . . . . . . . . . 1 . Fabricators . | . . . . . . . . . . . . . . . . . . . . . . . . . . . . . . Repair Stations 2 | . 1 . . . . . . . . . . . . . . . . . . . . . . . . . . . 1 Patch 1 | . 1 . . . . . . . . . . . . . . . . . . . . . . . . . . . . Recycling Units 7 | . 2 . 3 . . . . . . . . . . . . . . . . . . . 2 . . . . . . Tunnel 7 | . 2 . 3 . . . . . . . . . . . . . . . . . . . 2 . . . . . . Scrapoids 1 | . . . . . . . . . . . . . . . . . . . . . . . . . . . . . 1 Scanalyzers . | . . . . . . . . . . . . . . . . . . . . . . . . . . . . . . Garrison Access . | . . . . . . . . . . . . . . . . . . . . . . . . . . . . . . Data Cores Recovered 8 | . . . . . . . . . . . . . . . . . . . 1 . . 3 2 1 . . 1 . . Used 5 | . . . . . . . . . . . . . . . . . . . 1 . . 2 . 1 . . 1 . . Hacking Detections 79 | . 4 . 2 . 4 . . . . . 9 . 1 . . 1 . 5 7 . . 11 7 5 3 1 9 2 8 Full Trace Events 8 | . 2 . . . 2 . . . . . . . 1 . . . . 1 1 . . . 1 . . . . . . Feedback Events . | . . . . . . . . . . . . . . . . . . . . . . . . . . . . . . Feedback Blocked . | . . . . . . . . . . . . . . . . . . . . . . . . . . . . . . Robot Schematics Acquired 7 | . . . . . . . . 3 . . . . . . . . . . . . . . . 3 1 . . . . Robots Built 2 | . . . . . 1 . . . . . . . . . . . . . . . . . 1 . . . . . . Authchips . | . . . . . . . . . . . . . . . . . . . . . . . . . . . . . . Time 119 | . . . . . 38 . . . . . . . . . . . . . . . . . 81 . . . . . . Total Robot Build Rating 4 | . . . . . 3 . . . . . . . . . . . . . . . . . 1 . . . . . . Part Schematics Acquired 29 | . . . . . . . . 15 . . . . . . . . . . . . . 1 . 1 9 . 3 . . Parts Built 2 | . . . . . . . . . . . . . . . . . . . . . . . 2 . . . . . . Authchips . | . . . . . . . . . . . . . . . . . . . . . . . . . . . . . . Time 69 | . . . . . . . . . . . . . . . . . . . . . . . 69 . . . . . . Total Part Build Rating 18 | . . . . . . . . . . . . . . . . . . . . . . . 18 . . . . . . Parts Repaired 1 | . . . . . . . . . . . . . . . . . . . . . . . . . . . . . 1 Time 34 | . . . . . . . . . . . . . . . . . . . . . . . . . . . . . 34 Parts Recycled . | . . . . . . . . . . . . . . . . . . . . . . . . . . . . . . Recycled Matter . | . . . . . . . . . . . . . . . . . . . . . . . . . . . . . . Retrieved Matter . | . . . . . . . . . . . . . . . . . . . . . . . . . . . . . . Retrieved Components 10 | . . . 10 . . . . . . . . . . . . . . . . . . . . . . . . . . Parts Scanalyzed . | . . . . . . . . . . . . . . . . . . . . . . . . . . . . . . Part Schematics Acquired . | . . . . . . . . . . . . . . . . . . . . . . . . . . . . . . Parts Damaged . | . . . . . . . . . . . . . . . . . . . . . . . . . . . . . . Bothacking | -11 -10 -10 -8 -8 -6 -6 -6 -6 -6 -5 -5 -5 -5 -5 -4 -4 -4 -4 -4 -4 -4 -4 -3 -3 -3 -2 -2 -1 -1 ------------ Run | Yrd Mat Sub Rec Scr Fac Low Low Zio Dee Pro Fac Upp Upp War Pro Fac Was Fac Ext Cet Arc Hub Res Qua Sec Res Tes Acc Com Used RIF Installer . | . . . . . . . . . . . . . . . . . . . . . . . . . . . . . . Robots Hacked . | . . . . . . . . . . . . . . . . . . . . . . . . . . . . . . Non-combat . | . . . . . . . . . . . . . . . . . . . . . . . . . . . . . . Combat . | . . . . . . . . . . . . . . . . . . . . . . . . . . . . . . Robot Hacks Applied . | . . . . . . . . . . . . . . . . . . . . . . . . . . . . . . Relay Couplers Released 2 | . . . . . . . . . . . . . . . . . . 1 . . . 1 . . . . . . . Machine Destruction 2 | . . . . . . . . . . . . . . . . . . 1 . . . 1 . . . . . . . Fabnet Peak Effective % . | . . . . . . . . . . . . . . . . . . . . . . . . . . . . . . Robots Rewired 49 | . . . 1 . . 4 . . . 2 . . . 5 2 . . . 11 . . . . . . . 1 . 23 Allies Hacked . | . . . . . . . . . . . . . . . . . . . . . . . . . . . . . . Hacks Repelled 1 | . . . . . . . . . . . . . . . . 1 . . . . . . . . . . . . . Allies | -11 -10 -10 -8 -8 -6 -6 -6 -6 -6 -5 -5 -5 -5 -5 -4 -4 -4 -4 -4 -4 -4 -4 -3 -3 -3 -2 -2 -1 -1 -------- Run | Yrd Mat Sub Rec Scr Fac Low Low Zio Dee Pro Fac Upp Upp War Pro Fac Was Fac Ext Cet Arc Hub Res Qua Sec Res Tes Acc Com Total Allies 134 | . . 12 1 . 1 4 6 2 3 8 9 2 3 6 5 . . 10 19 . . . 8 . . 6 1 . 28 Largest Group 18 | . . 9 9 8 8 4 8 5 5 7 7 4 4 8 10 10 . 4 18 14 14 11 5 . . 4 1 1 14 Highest-Rated Group 849 | . . 171 171 139 139 106 430 299 299 482 476 319 319 507 621 621 . 324 822 650 650 507 388 . . 316 163 163 849 Highest-Rated Ally 163 | . . 19 19 19 26 31 81 81 88 84 81 81 81 81 81 81 . 81 51 51 51 51 81 . . 81 163 163 119 Total Orders 52 | . . . . . . . . . 24 7 . . . 2 . . . . . . . 1 . . . . . . 18 STAY 47 | . . . . . . . . . 23 5 . . . 1 . . . . . . . 1 . . . . . . 17 FOLLOW 4 | . . . . . . . . . 1 2 . . . 1 . . . . . . . . . . . . . . . GUARD 1 | . . . . . . . . . . . . . . . . . . . . . . . . . . . . . 1 Ally Attacks 906 | . . 15 31 . 13 . 44 . 44 58 144 15 41 63 22 43 . 90 37 21 12 62 35 . . 38 7 18 53 Total Damage 34256 | . . 563 461 . 354 . 1791 . 4757 1632 3482 920 1423 2736 1016 1257 . 4827 969 510 210 1330 1335 . . 1583 271 1360 1469 Kills 277 | . . 5 9 . 3 . 13 . 36 17 29 8 14 17 8 10 . 34 10 3 2 13 11 . . 16 4 10 5 Allies Corrupted 2 | . . 1 . . . . . . . . . . . . . . . . . . . . . . . . . . 1 Allies Melted 2 | . . . . . . . . . . . 1 . . 1 . . . . . . . . . . . . . . . Intel | -11 -10 -10 -8 -8 -6 -6 -6 -6 -6 -5 -5 -5 -5 -5 -4 -4 -4 -4 -4 -4 -4 -4 -3 -3 -3 -2 -2 -1 -1 ------- Run | Yrd Mat Sub Rec Scr Fac Low Low Zio Dee Pro Fac Upp Upp War Pro Fac Was Fac Ext Cet Arc Hub Res Qua Sec Res Tes Acc Com Robot Analysis Total 9 | . 4 . 1 . . . . . . . 1 . . . . 1 . . . . . 1 . . . . 1 . . Derelict Logs Recovered 17 | . . 2 . 1 . 1 3 . . 3 . 2 3 . 2 . . . . . . . . . . . . . . Drone Launches . | . . . . . . . . . . . . . . . . . . . . . . . . . . . . . . Drone Recoveries . | . . . . . . . . . . . . . . . . . . . . . . . . . . . . . . Exploration | -11 -10 -10 -8 -8 -6 -6 -6 -6 -6 -5 -5 -5 -5 -5 -4 -4 -4 -4 -4 -4 -4 -4 -3 -3 -3 -2 -2 -1 -1 ------------- Run | Yrd Mat Sub Rec Scr Fac Low Low Zio Dee Pro Fac Upp Upp War Pro Fac Was Fac Ext Cet Arc Hub Res Qua Sec Res Tes Acc Com Turns Passed 33487 | 43 1341 3034 1776 3414 1098 1702 1322 1313 6763 554 616 408 453 503 313 61 31 427 578 202 64 638 1542 462 758 201 418 215 3237 Spaces Moved 40375 | 44 1270 2121 1275 2456 623 1161 983 1006 5378 924 1340 1225 1138 1060 515 154 113 620 750 204 50 1391 3672 1090 1599 422 1143 541 6107 Core 162 | 2 . . . 139 . . . . 21 . . . . . . . . . . . . . . . . . . . . Treads . | . . . . . . . . . . . . . . . . . . . . . . . . . . . . . . Legs 3653 | . . 2009 399 . . . . . 1245 . . . . . . . . . . . . . . . . . . . . Wheels 9016 | 42 1270 112 876 2317 623 1161 983 1006 626 . . . . . . . . . . . . . . . . . . . . Hover 27544 | . . . . . . . . . 3486 924 1340 1225 1138 1060 515 154 113 620 750 204 50 1391 3672 1090 1599 422 1143 541 6107 Flight . | . . . . . . . . . . . . . . . . . . . . . . . . . . . . . . Fastest Speed 20 | 50 80 80 86 50 130 130 130 130 24 24 24 24 24 21 21 21 21 21 21 21 21 20 20 20 20 20 20 20 20 Average Speed 54 | 78 80 128 128 127 130 131 130 130 64 24 24 24 24 23 21 21 21 21 21 21 21 21 20 20 24 20 20 20 20 Slowest Speed 234 | 80 80 130 176 185 130 155 140 130 234 24 24 24 24 24 21 21 21 81 21 21 21 85 22 72 85 20 20 20 71 Overloaded Moves . | . . . . . . . . . . . . . . . . . . . . . . . . . . . . . . Propulsion Burnouts . | . . . . . . . . . . . . . . . . . . . . . . . . . . . . . . Robots Hopped . | . . . . . . . . . . . . . . . . . . . . . . . . . . . . . . Cave-ins Triggered . | . . . . . . . . . . . . . . . . . . . . . . . . . . . . . . Teleports 383 | . . . . . . . . . . . . . . . . . . . . . . . . . 53 16 44 21 249 Exploration Rate (%) 69 | 4 97 86 98 90 17 94 97 85 94 88 37 98 98 90 70 7 86 14 81 56 71 96 82 96 78 15 91 13 47 Regions Visited 29 Branch Regions 20 Pre-discovered Areas 16 | . 2 . 3 3 . 1 . . . 1 . . 2 . 2 . . . . . . . 2 . . . . . . Known Exits Taken 12 | . . . . . 1 1 1 . 1 1 1 1 1 . 1 . . 1 . . . . 1 . . 1 . . . Unknown Exits Taken 15 | 1 1 1 1 1 . . . 1 . . . . . 1 . . . . 1 1 1 1 . 1 1 . 1 1 . Scrap Searched 32 | . . 11 . 8 . 2 3 2 . 1 . 4 1 . . . . . . . . . . . . . . . . Spaces Dug 128 | . . 12 . . . . . . 14 . 4 . 3 9 . . . . . . . 6 15 13 6 . 11 5 30 Terrain Destroyed 657 | . 11 12 . . 2 3 . . 52 8 52 9 4 15 3 . . 9 18 2 . 41 62 58 29 13 15 13 226 Melee 12 | . . 12 . . . . . . . . . . . . . . . . . . . . . . . . . . . Projectile 377 | . . . . . . . . . 51 8 16 9 4 15 3 . . 9 18 2 . 41 62 26 29 13 15 9 47 AOE 215 | . 11 . . . . . . . . . 36 . . . . . . . . . . . . 32 . . . 4 132 Terrain Rammed . | . . . . . . . . . . . . . . . . . . . . . . . . . . . . . . Walls Destroyed . | . . . . . . . . . . . . . . . . . . . . . . . . . . . . . . Machines Disabled . | . . . . . . . . . . . . . . . . . . . . . . . . . . . . . . Actions | -11 -10 -10 -8 -8 -6 -6 -6 -6 -6 -5 -5 -5 -5 -5 -4 -4 -4 -4 -4 -4 -4 -4 -3 -3 -3 -2 -2 -1 -1 --------- Run | Yrd Mat Sub Rec Scr Fac Low Low Zio Dee Pro Fac Upp Upp War Pro Fac Was Fac Ext Cet Arc Hub Res Qua Sec Res Tes Acc Com Total 48873 | 49 1436 2389 1377 2736 777 1286 1011 1013 8149 1177 1496 1294 1269 1257 680 166 119 795 1042 328 89 1574 4264 1245 1847 487 1301 610 7610 Wait 5136 | . 50 208 31 210 26 1 . . 2023 183 63 35 75 124 132 . 7 86 126 89 33 39 387 66 96 18 111 25 892 Move 40345 | 43 1269 2120 1274 2455 622 1160 982 1005 5377 923 1339 1224 1137 1059 514 154 112 619 749 203 49 1390 3670 1089 1598 421 1142 540 6106 Hop . | . . . . . . . . . . . . . . . . . . . . . . . . . . . . . . Pick Up 133 | . . 1 9 30 . 14 2 4 50 . . . 3 . . . . . . 2 . 5 6 2 . . . . 5 Fast Attach 93 | 6 4 4 5 11 4 3 1 . 35 . . . . 1 . . . . . . . . 3 1 4 . 4 . 7 Attach 15 | . . 1 1 3 . 3 . . 3 . . . 1 . . . . 1 . 1 . . . . . . . . 1 Detach 12 | . . 1 . . 1 1 . . 1 . . . . . . . . . . 1 . . . . . . 2 . 5 Swap 154 | . 7 3 3 4 . 3 2 . 21 1 . . . 5 . . . 3 1 3 . 10 23 10 16 4 8 . 27 Drop 218 | . 3 5 4 23 . 7 3 4 119 2 . . 5 5 . . . 3 . 2 . 4 8 1 2 . 5 . 13 Fire 1704 | . 79 2 . . 73 27 8 . 310 38 72 22 25 37 18 8 . 57 57 17 6 71 119 63 82 34 26 28 425 Melee 72 | . . 42 30 . . . . . . . . . . . . . . . . . . . . . . . . . . Ram 1 | . . . . . . . . . . . . . . . . . . . 1 . . . . . . . . . . Kick . | . . . . . . . . . . . . . . . . . . . . . . . . . . . . . . Crush . | . . . . . . . . . . . . . . . . . . . . . . . . . . . . . . Escape Stasis 41 | . . . . . . . . . . . . . . . . . . . . . . 26 1 . . . . . 14 Rewire 206 | . . . 3 . . 44 . . 1 6 . 1 . 22 8 . . . 78 . . . . . . . 3 . 40 Trap 11 | . . . . . . . . . 11 . . . . . . . . . . . . . . . . . . . . Miscellaneous 732 | . 24 2 17 . 51 23 13 . 198 24 22 12 23 4 8 4 . 26 30 10 1 29 47 13 49 10 . 17 75 Route ------- -11/Scrapyard -10/Materials (discovered 5 exits: [*Mat x3] / [*Min] / *Sub) -10/Subcaves (discovered 3 exits: [*Mat x2] / *Rec) -8/Recycling (discovered 2 exits: *Fac / *Scr) -8/Scraptown (discovered 2 exits: *Fac x2) -6/Factory (discovered 5 exits: Fac x3 / *Low x2) -6/Lower Caves -6/Lower Caves (discovered 2 exits: *Fac / *Zio) -6/Zion (discovered 2 exits: [*Dee] / *Pro) -6/Deep Caves -5/Proximity Caves -5/Factory (discovered 4 exits: *Fac x2 / *Upp x2) -5/Upper Caves -5/Upper Caves (discovered 2 exits: *Fac / *War) -5/Warlord -4/Proximity Caves -4/Factory -4/Waste -4/Factory (discovered 5 exits: Upp x2 / *Ext x2 / *Arm) -4/Extension (discovered 3 exits: *Res x2 / [*Cet]) -4/Cetus (discovered 2 exits: *Res / [*Arc]) -4/Archives (discovered 2 exits: *Hub x2) -4/Hub_04(d) (discovered 4 exits: *Res x4) -3/Research (discovered 4 exits: *Res x2 / *Qua x2) -3/Quarantine (discovered 2 exits: *Res / *Sec) -3/Section 7 -2/Research (discovered 3 exits: *Acc / *Tes x2) -2/Testing -1/Access -1/Command (discovered 1 exit: [*Sur]) History --------- Turn | Location | Event 1 | -11/Scrapyard | Upgraded with Power slot (x1) 1 | -11/Scrapyard | Upgraded with Propulsion slot (x1) 1 | -11/Scrapyard | Upgraded with Utility slot (x1) 1 | -11/Scrapyard | Upgraded with Weapon slot (x1) 9 | -11/Scrapyard | Discovered new exit (range 15) 44 | -11/Scrapyard | Entered Materials 72 | -10/Materials | Discovered new exit (range 15) 227 | -10/Materials | Discovered new exit (range 6) 304 | -10/Materials | Build established: Mutant 447 | -10/Materials | Discovered new exit (range 8) 530 | -10/Materials | Discovered new exit (range 9) 553 | -10/Materials | Reached level 2 644 | -10/Materials | Derelicts attacked the area 668 | -10/Materials | Discovered new exit (range 16) 772 | -10/Materials | Upgraded with Utility slot (x1) 1046 | -10/Materials | Reached level 3 1300 | -10/Materials | Reached level 4 1385 | -10/Materials | Entered Subcaves 1388 | -10/Subcaves | Upgraded with Utility slot (x1) 1418 | -10/Subcaves | Disturbed a concealed Subdweller 1496 | -10/Subcaves | Visited 4L-MR0's lab 1509 | -10/Subcaves | Found Prototype Leg 1509 | -10/Subcaves | Identified Cargo Legs 1510 | -10/Subcaves | Attached Cargo Legs, gained temporary slots: Utility x2 1585 | -10/Subcaves | A swath of the cavern ceiling suddenly collapsed 1662 | -10/Subcaves | Visited triangular shrine 1670 | -10/Subcaves | Found Prototype Device 1670 | -10/Subcaves | Identified V3-11A's Pendant 1675 | -10/Subcaves | Befriended Subdweller 1710 | -10/Subcaves | Build established: Gladiator 1898 | -10/Subcaves | Shifting Twisted Machinery released Spk. Treads 1902 | -10/Subcaves | Shifting Twisted Machinery released Sub. Machine Gun 1915 | -10/Subcaves | Disturbed a concealed Subdweller 1915 | -10/Subcaves | Befriended Subdweller 1936 | -10/Subcaves | Upgraded with Utility slot (x1) 1938 | -10/Subcaves | Upgraded with Propulsion slot (x1) 2065 | -10/Subcaves | Reached level 5 2078 | -10/Subcaves | Discovered new exit (range 14) 2168 | -10/Subcaves | Approached by friendly Subdweller 2364 | -10/Subcaves | Shifting Twisted Machinery released Sub. Beam Cannon 2372 | -10/Subcaves | Shifting Twisted Machinery released Sub. Power Source 2391 | -10/Subcaves | Visited Clippyterm 2395 | -10/Subcaves | Learned Factory fabricator intel 2395 | -10/Subcaves | Learned Factory trap positions 2457 | -10/Subcaves | Discovered new exit (range 7) 2515 | -10/Subcaves | Befriended Subdweller 2724 | -10/Subcaves | A swath of the cavern ceiling suddenly collapsed 3396 | -10/Subcaves | Learned 8 Materials zone layouts 3485 | -10/Subcaves | Befriended Subdweller 3495 | -10/Subcaves | Befriended Subdweller 3495 | -10/Subcaves | Befriended Subdweller 3495 | -10/Subcaves | Befriended Subdweller 3570 | -10/Subcaves | Befriended Subdweller 3570 | -10/Subcaves | Befriended Subdweller 3578 | -10/Subcaves | Shifting Twisted Machinery released Sub. Machine Gun 3582 | -10/Subcaves | Shifting Twisted Machinery released Sub. Beam Cannon 3950 | -10/Subcaves | Befriended Subdweller 3951 | -10/Subcaves | Discovered new exit (range 6) 3955 | -10/Subcaves | Befriended Subdweller 4110 | -10/Subcaves | Learned 2 Materials zone layouts 4419 | -10/Subcaves | Entered Recycling 4419 | -8/Recycling | Accompanied by 9 allies 4421 | -8/Recycling | Reached level 6 4804 | -8/Recycling | Discovered new exit (range 16) 4928 | -8/Recycling | Reached level 7 5054 | -8/Recycling | Upgraded with Utility slot (x1) 5266 | -8/Recycling | Reached level 8 5303 | -8/Recycling | Upgraded with Propulsion slot (x1) 5495 | -8/Recycling | Build established: Hauler-Gladiator 6090 | -8/Recycling | Scanned before Scraplab entrance 6113 | -8/Recycling | Discovered new exit (range 15) 6123 | -8/Recycling | Entered Scraplab 6195 | -8/Recycling | Entered Scraptown 6195 | -8/Scraptown | Accompanied by 8 allies 6289 | -8/Scraptown | Delivered V3-11A's Pendant to T0-NE2 in exchange for information 6449 | -8/Scraptown | Visited CR-KLE's Repair Center 6486 | -8/Scraptown | Visited Red Mages 6505 | -8/Scraptown | Visited Cyclists 6683 | -8/Scraptown | Discovered new exit (range 15) 6905 | -8/Scraptown | Visited Bundlers 6991 | -8/Scraptown | Visited The Evicted 7006 | -8/Scraptown | Visited Awakened 7418 | -8/Scraptown | Build established: Hauler-Mutant 7657 | -8/Scraptown | Visited UFD Registry 7782 | -8/Scraptown | Registered with UFD as "Microbucket" 7811 | -8/Scraptown | Visited Scrap Suit Storage 7836 | -8/Scraptown | Visited Derelict Rescue Squad 7846 | -8/Scraptown | Found DRS Beacon 7880 | -8/Scraptown | Visited Botcube Research 7886 | -8/Scraptown | Found Botcube 7921 | -8/Scraptown | Visited Junk Repository 7977 | -8/Scraptown | Delivered Scrap Shield to a Scientist 8068 | -8/Scraptown | Visited Supply Room 8143 | -8/Scraptown | Visited Abandonware Association 8178 | -8/Scraptown | Learned abandonware demo "HACKBUD.EXE" 8178 | -8/Scraptown | Learned abandonware demo "REBOOT5.EXE" 8230 | -8/Scraptown | Visited Science Guys 8245 | -8/Scraptown | Discovered new exit (range 10) 8311 | -8/Scraptown | Visited Junk Repository 8369 | -8/Scraptown | Visited Cartography Club 8424 | -8/Scraptown | Found Surveybot 17 Chip 8449 | -8/Scraptown | Learned location of Proximity Caves (-4) 8449 | -8/Scraptown | Learned location of Warlord (-5) 8449 | -8/Scraptown | Learned 20 Factory zone layouts 8449 | -8/Scraptown | Learned 4 Access zone layouts 8449 | -8/Scraptown | Learned 4 Storage zone layouts 8449 | -8/Scraptown | Learned 20 Lower Caves zone layouts 8449 | -8/Scraptown | Learned 16 Proximity Caves zone layouts 8449 | -8/Scraptown | Learned 4 Armory zone layouts 8449 | -8/Scraptown | Learned location of 2 exits from Lower Caves 8449 | -8/Scraptown | Learned location of 1 exit from Upper Caves 8466 | -8/Scraptown | Found Deep Structural Scanner 8846 | -8/Scraptown | Visited CPS Storage 9038 | -8/Scraptown | Scanned Subdweller tech in exchange for log data 9042 | -8/Scraptown | Learned 12 Research zone layouts 9201 | -8/Scraptown | Build established: Hauler-Skirmisher 9609 | -8/Scraptown | Entered Factory 9609 | -6/Factory | Accompanied by 8 allies 9610 | -6/Factory | Identified exit to Factory 9610 | -6/Factory | Identified exit to Lower Caves 9611 | -6/Factory | Reached level 9 9611 | -6/Factory | Reached level 10 9611 | -6/Factory | Reached level 11 9611 | -6/Factory | Reached level 12 9612 | -6/Factory | Loaded intel: 80 trap records 9613 | -6/Factory | Loaded intel: 6 fabricator locations 9709 | -6/Factory | Lost 7 allies 9886 | -6/Factory | Reached level 13 9974 | -6/Factory | Upgraded with Utility slot (x1) 10088 | -6/Factory | Fabricated O-24 Administrator? 10241 | -6/Factory | Core integrity fell below 50% 10414 | -6/Factory | Reached level 14 10707 | -6/Factory | Entered Lower Caves 10708 | -6/Lower Caves | Identified exit to Lower Caves 10709 | -6/Lower Caves | UFD Scientist delivered a prototype 10714 | -6/Lower Caves | Upgraded with Utility slot (x1) 10714 | -6/Lower Caves | Found Prototype Protection 10715 | -6/Lower Caves | Identified Enh. Scrap Shield 11014 | -6/Lower Caves | Build established: Hauler-Mutant 11117 | -6/Lower Caves | Reached level 15 11669 | -6/Lower Caves | Learned location of Zion (-6) 12017 | -6/Lower Caves | Upgraded with Weapon slot (x1) 12148 | -6/Lower Caves | Attacked by a delusional Derelict stockpiling Unaware 12176 | -6/Lower Caves | Upgraded with Utility slot (x1) 12312 | -6/Lower Caves | Build established: Hauler-Gunner 12409 | -6/Lower Caves | Entered another Lower Caves area 12409 | -6/Lower Caves | Accompanied by 4 allies 12410 | -6/Lower Caves | Identified exit to Zion 12415 | -6/Lower Caves | Learned Factory emergency access door positions 12491 | -6/Lower Caves | Prototype Device suddenly appears! 12498 | -6/Lower Caves | Upgraded with Utility slot (x1) 12498 | -6/Lower Caves | Found Prototype Device 12498 | -6/Lower Caves | Identified Amulet of Y3-NDR 12512 | -6/Lower Caves | Joined by bewildered Wizard 12514 | -6/Lower Caves | Joined by bewildered Wizard 12514 | -6/Lower Caves | Joined by bewildered Wizard 12545 | -6/Lower Caves | Learned 8 Factory zone layouts 12577 | -6/Lower Caves | Joined by bewildered Wizard 12775 | -6/Lower Caves | Attracted the attention of an 0b10 checkpoint 12963 | -6/Lower Caves | Reached level 16 13067 | -6/Lower Caves | Lost 5 allies 13112 | -6/Lower Caves | Joined by bewildered Wizard 13114 | -6/Lower Caves | Joined by bewildered Wizard 13731 | -6/Lower Caves | Entered Zion 13731 | -6/Zion | Accompanied by 3 allies 13732 | -6/Zion | Identified exit to Proximity Caves 13733 | -6/Zion | Reached level 17 13744 | -6/Zion | Given A8's code to call for help 13785 | -6/Zion | System corruption cleaned by Quarantine Array 13891 | -6/Zion | Given the Hacking Drone Bay 14013 | -6/Zion | Gained Derelict followers 14135 | -6/Zion | Turned away by Imprinter 14812 | -6/Zion | Acquired unknown access codes intercepted by a Zionite 15015 | -6/Zion | Opened final containment barrier to the Deep Caves 15027 | -6/Zion | Discovered new exit (range 10) 15036 | -6/Zion | Saw the warning signs outside the Deep Caves entrance 15044 | -6/Zion | Entered Deep Caves 15044 | -6/Deep Caves | Accompanied by 5 allies 15045 | -6/Deep Caves | Identified exit to Proximity Caves 15416 | -6/Deep Caves | Z-Facility disabled 15447 | -6/Deep Caves | Lost 4 allies 15571 | -6/Deep Caves | Attacked by Z-Imprinter 15604 | -6/Deep Caves | Core integrity fell below 20% 15618 | -6/Deep Caves | Found Prototype Protection 15618 | -6/Deep Caves | Identified Zio. Weapon Casing 15664 | -6/Deep Caves | Destroyed Z-Imprinter 15676 | -6/Deep Caves | Found Prototype Device 15676 | -6/Deep Caves | Identified Zio. Metafield Generator 15805 | -6/Deep Caves | Found Zio. Weapon Casing 16215 | -6/Deep Caves | Found Prototype Protection 16215 | -6/Deep Caves | Identified Zio. Heavy Carapace 16464 | -6/Deep Caves | Spotted AG-32431 16545 | -6/Deep Caves | Found Zio. Weapon Casing 16570 | -6/Deep Caves | Build established: Scavenger-Sprinter 16619 | -6/Deep Caves | Botcube activated 16641 | -6/Deep Caves | Botcube completed mutation into hovering form, armed with 2 guns. 16775 | -6/Deep Caves | Spotted AG-63431 16831 | -6/Deep Caves | Allies destroyed AG-63431 16834 | -6/Deep Caves | Found GOLEM Unit 17336 | -6/Deep Caves | Build established: Scavenger-Golem 17655 | -6/Deep Caves | Murdered *Glidesys 17663 | -6/Deep Caves | Found Botcube 17675 | -6/Deep Caves | Triggered Deep Caves wall 17675 | -6/Deep Caves | Reached level 18 17675 | -6/Deep Caves | Spotted AS-82884 17678 | -6/Deep Caves | Botcube activated 17703 | -6/Deep Caves | Exposed GOLEM chamber 17755 | -6/Deep Caves | Spotted AS-61796 17826 | -6/Deep Caves | Destroyed AS-82884 17844 | -6/Deep Caves | Destroyed AS-61796 17876 | -6/Deep Caves | Destroyed 9 combat bots 17975 | -6/Deep Caves | Destroyed AG-32431 18374 | -6/Deep Caves | Found GOLEM Unit 18808 | -6/Deep Caves | Found GOLEM Unit 18921 | -6/Deep Caves | Found GOLEM Unit 19533 | -6/Deep Caves | Found GOLEM Unit 19780 | -6/Deep Caves | Found GOLEM Unit 20015 | -6/Deep Caves | Found GOLEM Unit 20095 | -6/Deep Caves | Found GOLEM Unit 20238 | -6/Deep Caves | Found GOLEM Unit 20380 | -6/Deep Caves | Spotted AG-63159 20502 | -6/Deep Caves | Destroyed AG-63159 20637 | -6/Deep Caves | Found GOLEM Unit 20688 | -6/Deep Caves | Found GOLEM Unit 20855 | -6/Deep Caves | Found GOLEM Unit 21572 | -6/Deep Caves | Found Botcube 21669 | -6/Deep Caves | Found Zio. Weapon Casing 21680 | -6/Deep Caves | Botcube activated 21699 | -6/Deep Caves | Build established: Scavenger-Sprinter 21702 | -6/Deep Caves | Botcube completed mutation into hovering form, armed with 2 guns. 21807 | -6/Deep Caves | Entered Proximity Caves 21807 | -5/Proximity Caves | Accompanied by 1 ally 21809 | -5/Proximity Caves | Learned Factory non-interactive machine intel 21840 | -5/Proximity Caves | Joined by bewildered Wizard 21840 | -5/Proximity Caves | Joined by bewildered Wizard 21843 | -5/Proximity Caves | Unaware initiated a cargo recovery operation 21844 | -5/Proximity Caves | Reached level 19 21861 | -5/Proximity Caves | Encountered a Derelict guarding a broken Freighter 21873 | -5/Proximity Caves | Attracted the attention of an 0b10 outpost 21888 | -5/Proximity Caves | Joined by bewildered Wizard 21890 | -5/Proximity Caves | Joined by bewildered Wizard 21890 | -5/Proximity Caves | Joined by bewildered Wizard 21984 | -5/Proximity Caves | Reached level 20 22110 | -5/Proximity Caves | Upgraded with Utility slot (x1) 22119 | -5/Proximity Caves | Spotted B-75 Beast 22169 | -5/Proximity Caves | Destroyed B-75 Beast 22173 | -5/Proximity Caves | Reached level 21 22187 | -5/Proximity Caves | Learned Factory trap positions 22251 | -5/Proximity Caves | Joined by bewildered Wizard 22361 | -5/Proximity Caves | Entered Factory 22361 | -5/Factory | Accompanied by 6 allies 22362 | -5/Factory | Identified exit to Upper Caves 22363 | -5/Factory | Identified exit to Factory 22364 | -5/Factory | Loaded intel: 100 trap records 22366 | -5/Factory | Loaded intel: 213 non-interactive machine locations 22447 | -5/Factory | Joined by bewildered Wizard 22447 | -5/Factory | Joined by bewildered Wizard 22552 | -5/Factory | Reached level 22 22655 | -5/Factory | Spotted B-75 Beast 22664 | -5/Factory | Destroyed B-75 Beast 22735 | -5/Factory | Joined by bewildered Wizard 22735 | -5/Factory | Joined by bewildered Wizard 22735 | -5/Factory | Joined by bewildered Wizard 22735 | -5/Factory | Joined by bewildered Wizard 22884 | -5/Factory | Cargo convoy interrupted 22926 | -5/Factory | Reached level 23 22935 | -5/Factory | Joined by bewildered Wizard 22935 | -5/Factory | Joined by bewildered Wizard 22961 | -5/Factory | First assault squad dispatched 22968 | -5/Factory | Joined by bewildered Wizard 22977 | -5/Factory | Entered Upper Caves 22977 | -5/Upper Caves | Accompanied by 4 allies 22978 | -5/Upper Caves | Identified exit to Upper Caves 23057 | -5/Upper Caves | Learned 4 Factory zone layouts 23105 | -5/Upper Caves | Encountered a Warlord checkpoint 23142 | -5/Upper Caves | Spotted B-75 Beast 23159 | -5/Upper Caves | Destroyed B-75 Beast 23255 | -5/Upper Caves | Joined by bewildered Wizard 23255 | -5/Upper Caves | Joined by bewildered Wizard 23385 | -5/Upper Caves | Entered another Upper Caves area 23385 | -5/Upper Caves | Accompanied by 4 allies 23386 | -5/Upper Caves | Identified exit to Warlord 23387 | -5/Upper Caves | Attracted the attention of an 0b10 checkpoint 23418 | -5/Upper Caves | Learned location of Extension (-4) 23418 | -5/Upper Caves | Learned location of 2 exits from Upper Caves 23446 | -5/Upper Caves | Attracted the attention of an 0b10 base 23539 | -5/Upper Caves | Acquired the password to a Derelict Tinkerer's latest research 23541 | -5/Upper Caves | Learned Factory terminal intel 23543 | -5/Upper Caves | Found Prototype Special Weapon 23551 | -5/Upper Caves | Identified Molecular Deconstructor 23629 | -5/Upper Caves | Caught by Unaware searching for contraband prototypes 23629 | -5/Upper Caves | Caught by Unaware searching for contraband prototypes 23661 | -5/Upper Caves | Joined by bewildered Wizard 23661 | -5/Upper Caves | Joined by bewildered Wizard 23663 | -5/Upper Caves | Joined by bewildered Wizard 23669 | -5/Upper Caves | Lost 3 allies 23838 | -5/Upper Caves | Entered Warlord 23838 | -5/Warlord | Accompanied by 3 allies 23840 | -5/Warlord | Reached level 24 23846 | -5/Warlord | System corruption cleaned by Quarantine Array 23888 | -5/Warlord | Warlord's base attacked by MAIN.C 23996 | -5/Warlord | Rebuked by Warlord 24090 | -5/Warlord | Found Prototype Reactor 24090 | -5/Warlord | Identified Vortex Chain Reactor 24110 | -5/Warlord | Spotted B-86 Titan 24128 | -5/Warlord | Allies destroyed B-86 Titan 24128 | -5/Warlord | Warlord forces counterattacked 24163 | -5/Warlord | Discovered new exit (range 9) 24194 | -5/Warlord | Upgraded with Utility slot (x1) 24199 | -5/Warlord | Found Prototype Device 24199 | -5/Warlord | Identified Exp. Phase Shifter 24206 | -5/Warlord | Found Prototype Processor 24206 | -5/Warlord | Identified Exp. Core Analyzer 24227 | -5/Warlord | Opened side exit 24289 | -5/Warlord | Spotted Striker 24298 | -5/Warlord | Destroyed Striker 24341 | -5/Warlord | Entered Proximity Caves 24341 | -4/Proximity Caves | Accompanied by 6 allies 24348 | -4/Proximity Caves | Lost 15 allies 24413 | -4/Proximity Caves | Joined by bewildered Wizard 24416 | -4/Proximity Caves | Joined by bewildered Wizard 24428 | -4/Proximity Caves | Attacked by a faux Warlord 24446 | -4/Proximity Caves | Joined by bewildered Wizard 24475 | -4/Proximity Caves | Discovered exit to Factory (range 15) 24549 | -4/Proximity Caves | Reached level 25 24553 | -4/Proximity Caves | Learned location of Armory (-4) 24654 | -4/Proximity Caves | Entered Factory 24654 | -4/Factory | Accompanied by 10 allies 24655 | -4/Factory | Identified exit to Upper Caves 24656 | -4/Factory | Loaded intel: 27 terminal locations 24715 | -4/Factory | Sucked down chute 24715 | -4/Factory | Entered Waste 24717 | -4/Waste | Spotted C-40 Crusher 24717 | -4/Waste | Spotted C-40 Crusher 24718 | -4/Waste | Spotted C-40 Crusher 24719 | -4/Waste | Spotted C-40 Crusher 24720 | -4/Waste | Spotted C-40 Crusher 24730 | -4/Waste | EMP discharged 24730 | -4/Waste | Discovered new exit (range 10) 24730 | -4/Waste | Spotted C-40 Crusher 24746 | -4/Waste | Entered Factory 24747 | -4/Factory | Identified exit to DSF 24750 | -4/Factory | Joined by bewildered Wizard 24751 | -4/Factory | Joined by bewildered Wizard 24781 | -4/Factory | Joined by bewildered Wizard 24801 | -4/Factory | Spotted B-86 Titan 24816 | -4/Factory | Joined by bewildered Wizard 24825 | -4/Factory | Reached level 26 24838 | -4/Factory | Joined by bewildered Wizard 24850 | -4/Factory | Joined by bewildered Wizard 24866 | -4/Factory | Allies destroyed B-86 Titan 24902 | -4/Factory | Lost 5 allies 24915 | -4/Factory | Discovered new exit (range 16) 24922 | -4/Factory | Discovered new exit (range 14) 24931 | -4/Factory | Identified exit to Extension 24931 | -4/Factory | Identified exit to Armory 24962 | -4/Factory | Joined by bewildered Wizard 24963 | -4/Factory | Joined by bewildered Wizard 24964 | -4/Factory | Joined by bewildered Wizard 24996 | -4/Factory | First assault squad dispatched 25020 | -4/Factory | Build established: Hacker-Sprinter 25173 | -4/Factory | Entered Extension 25193 | -4/Extension | Rescued a captive Derelict 25194 | -4/Extension | Rescued a captive Derelict 25202 | -4/Extension | Rescued a captive Derelict 25202 | -4/Extension | Reached level 27 25233 | -4/Extension | Energy Cycler disabled 25234 | -4/Extension | Rescued a captive Derelict 25236 | -4/Extension | Rescued a captive Derelict 25238 | -4/Extension | Rescued a captive Derelict 25238 | -4/Extension | Rescued a captive Derelict 25243 | -4/Extension | Rescued a captive Derelict 25245 | -4/Extension | Rescued a captive Derelict 25339 | -4/Extension | Spotted B-86 Titan 25339 | -4/Extension | Destroyed B-86 Titan 25345 | -4/Extension | Spotted B-86 Titan 25399 | -4/Extension | Destroyed B-86 Titan 25402 | -4/Extension | Discovered new exit (range 14) 25404 | -4/Extension | Extracted ID and sensor layout for unrecognized location from A7's data core 25579 | -4/Extension | Discovered new exit (range 10) 25579 | -4/Extension | Discovered new exit (range 6) 25599 | -4/Extension | Upgraded with Utility slot (x1) 25751 | -4/Extension | Entered Cetus 25751 | -4/Cetus | Accompanied by 14 allies 25756 | -4/Cetus | Spotted Cetus Guard 25756 | -4/Cetus | Spotted Cetus Guard 25759 | -4/Cetus | Lost 4 allies 25761 | -4/Cetus | Spotted Cetus Guard 25761 | -4/Cetus | Spotted Cetus Guard 25763 | -4/Cetus | Allies destroyed Cetus Guard 25764 | -4/Cetus | Allies destroyed Cetus Guard 25770 | -4/Cetus | Destroyed Cetus Guard 25776 | -4/Cetus | Allies destroyed Cetus Guard 25786 | -4/Cetus | Discovered new exit (range 16) 25790 | -4/Cetus | Spotted Cetus Guard 25790 | -4/Cetus | Spotted Cetus Guard 25793 | -4/Cetus | Spotted Cetus Guard 25799 | -4/Cetus | Destroyed Cetus Guard 25800 | -4/Cetus | Spotted Cetus Guard 25805 | -4/Cetus | Destroyed Cetus Guard 25811 | -4/Cetus | Destroyed Cetus Guard 25812 | -4/Cetus | Build established: Commander-Sprinter 25816 | -4/Cetus | Discovered new exit (range 15) 25817 | -4/Cetus | Met Revision 17 25842 | -4/Cetus | Upgraded with Power slot (x1) 25953 | -4/Cetus | Entered Archives 25953 | -4/Archives | Accompanied by 14 allies 25979 | -4/Archives | Discovered new exit (range 16) 25981 | -4/Archives | Discovered new exit (range 16) 25995 | -4/Archives | Lost 3 allies 26017 | -4/Archives | Entered Hub_04(d) 26017 | -4/Hub_04(d) | Accompanied by 11 allies 26021 | -4/Hub_04(d) | Discovered new exit (range 11) 26031 | -4/Hub_04(d) | Reached level 28 26048 | -4/Hub_04(d) | Discovered new exit (range 9) 26049 | -4/Hub_04(d) | Spotted B-86 Titan 26067 | -4/Hub_04(d) | Destroyed B-86 Titan 26100 | -4/Hub_04(d) | Discovered new exit (range 14) 26288 | -4/Hub_04(d) | Upgraded with Propulsion slot (x1) 26330 | -4/Hub_04(d) | Discovered new exit (range 13) 26394 | -4/Hub_04(d) | Destroyed 8 combat bots 26430 | -4/Hub_04(d) | Build established: Scavenger-Sprinter 26584 | -4/Hub_04(d) | Network Hub disabled 26584 | -4/Hub_04(d) | Network Hub disabled 26590 | -4/Hub_04(d) | Network Hub disabled 26599 | -4/Hub_04(d) | Network Hub disabled 26636 | -4/Hub_04(d) | Spotted Lightning 26636 | -4/Hub_04(d) | Spotted Lightning 26655 | -4/Hub_04(d) | Entered Research 26657 | -3/Research | Reached level 29 26659 | -3/Research | Joined by bewildered Wizard 26659 | -3/Research | Joined by bewildered Wizard 26673 | -3/Research | Joined by bewildered Wizard 26673 | -3/Research | Joined by bewildered Wizard 26731 | -3/Research | Spotted B-86 Titan 26738 | -3/Research | Destroyed B-86 Titan 26775 | -3/Research | Joined by bewildered Wizard 26776 | -3/Research | Joined by bewildered Wizard 26855 | -3/Research | Revision forces began assault on 0b10 26920 | -3/Research | Discovered new exit (range 12) 26930 | -3/Research | Fabricated Quantum Reactor? 26940 | -3/Research | Lost 5 allies 26944 | -3/Research | Discovered new exit (range 12) 27170 | -3/Research | Identified exit to Quarantine 27220 | -3/Research | Spotted B-86 Titan 27258 | -3/Research | Met up with Revision 17++ 27312 | -3/Research | Reached level 30 27355 | -3/Research | Research terminal network offline 27382 | -3/Research | Destroyed 7 combat bots 27468 | -3/Research | Spotted B-90 Cyclops 27476 | -3/Research | Destroyed B-90 Cyclops 27612 | -3/Research | Fabricated A-02 Transporter? 27716 | -3/Research | Spotted Striker 27719 | -3/Research | Spotted Striker 27727 | -3/Research | Destroyed Striker 27739 | -3/Research | Destroyed Striker 27767 | -3/Research | Spotted Striker 27769 | -3/Research | Spotted Striker 28197 | -3/Research | Entered Quarantine 28223 | -3/Quarantine | Met incapacitated Sigix Warrior 28223 | -3/Quarantine | Lockdown squad dispatched 28289 | -3/Quarantine | Spotted Lightning 28290 | -3/Quarantine | Found Alien Artifact 28291 | -3/Quarantine | Spotted Lightning 28315 | -3/Quarantine | Discovered new exit (range 10) 28331 | -3/Quarantine | Destroyed Lightning 28333 | -3/Quarantine | Spotted Lightning 28340 | -3/Quarantine | Destroyed Lightning 28361 | -3/Quarantine | Destroyed 8 combat bots 28366 | -3/Quarantine | Destroyed Lightning 28381 | -3/Quarantine | Found Prototype Processor 28381 | -3/Quarantine | Identified Exp. Targeting Computer 28399 | -3/Quarantine | Found Prototype Device 28399 | -3/Quarantine | Identified Exp. EM Disruption Field 28432 | -3/Quarantine | Spotted Fortress 28513 | -3/Quarantine | Destroyed Fortress 28657 | -3/Quarantine | Discovered new exit (range 6) 28659 | -3/Quarantine | Entered Section 7 28661 | -3/Section 7 | Reached level 31 28697 | -3/Section 7 | Found Alien Artifact 28697 | -3/Section 7 | Identified Integrated Dissipator 28697 | -3/Section 7 | Installed Integrated Dissipator, increased core heat dissipation (+20) 28738 | -3/Section 7 | Build established: Hacker-Sprinter 28741 | -3/Section 7 | Spotted S7 Guard 28747 | -3/Section 7 | Destroyed S7 Guard 28754 | -3/Section 7 | Found Alien Artifact 28754 | -3/Section 7 | Identified Navigation Efficiency Matrix 28754 | -3/Section 7 | Installed Navigation Efficiency Matrix, process failed with unexpected side effects 28779 | -3/Section 7 | Found Alien Artifact 28779 | -3/Section 7 | Identified Integrity Redistributor 28779 | -3/Section 7 | Used Integrity Redistributor, redistributed integrity from core (-30) 28895 | -3/Section 7 | Spotted Alpha 7 28916 | -3/Section 7 | Found Alien Artifact 28916 | -3/Section 7 | Identified Integrated Reactor 28916 | -3/Section 7 | Installed Integrated Reactor, increased core energy generation (+10) 28996 | -3/Section 7 | Spotted Executioner 28996 | -3/Section 7 | Spotted Executioner 29013 | -3/Section 7 | Spotted B-99 Colossus 29029 | -3/Section 7 | Found Alien Artifact 29029 | -3/Section 7 | Identified LRC Inertial Stabilizer 29029 | -3/Section 7 | Installed LRC Inertial Stabilizer, increased mass support (+10) 29159 | -3/Section 7 | First assault squad dispatched 29183 | -3/Section 7 | Spotted Executioner 29323 | -3/Section 7 | Spotted S7 Guard 29334 | -3/Section 7 | Destroyed S7 Guard 29339 | -3/Section 7 | Found Alien Artifact 29339 | -3/Section 7 | Identified Core Physics Calibrator 29382 | -3/Section 7 | Spotted Alpha 7 29396 | -3/Section 7 | Destroyed 14 combat bots 29401 | -3/Section 7 | High security lockdown imminent 29409 | -3/Section 7 | Discovered new exit (range 7) 29417 | -3/Section 7 | Entered Research 29452 | -2/Research | Joined by bewildered Wizard 29452 | -2/Research | Joined by bewildered Wizard 29453 | -2/Research | Joined by bewildered Wizard 29453 | -2/Research | Reached level 32 29504 | -2/Research | Joined by bewildered Wizard 29504 | -2/Research | Joined by bewildered Wizard 29519 | -2/Research | High security lockdown imminent 29522 | -2/Research | Joined by bewildered Wizard 29523 | -2/Research | Identified exit to Testing 29552 | -2/Research | Discovered new exit (range 6) 29581 | -2/Research | Spotted B-90 Cyclops 29599 | -2/Research | High security lockdown engaged 29618 | -2/Research | Entered Testing 29622 | -2/Testing | Found Prototype Energy Gun 29622 | -2/Testing | Identified Hyp. EM Gauss Rifle 29641 | -2/Testing | Spotted PD-X4D1IZTGW5 29689 | -2/Testing | Spotted PX-H5RFCD5ERN 29692 | -2/Testing | Rewired PX-H5RFCD5ERN 29697 | -2/Testing | Spotted Striker 29722 | -2/Testing | Found Prototype Energy Cannon 29722 | -2/Testing | Identified Imp. Potential Cannon 29725 | -2/Testing | Found Prototype Energy Cannon 29725 | -2/Testing | Identified Potential Cannon 29817 | -2/Testing | Found Prototype Energy Cannon 29817 | -2/Testing | Identified Cld. Nova Cannon 29828 | -2/Testing | Discovered new exit (range 12) 29906 | -2/Testing | Reached level 33 30036 | -2/Testing | Entered Access 30036 | -1/Access | Accompanied by 1 ally 30181 | -1/Access | Reached level 34 30246 | -1/Access | Spotted B-99 Colossus 30246 | -1/Access | Spotted B-99 Colossus 30250 | -1/Access | Discovered new exit (range 4) 30251 | -1/Access | Entered Command 30253 | -1/Command | Reached level 35 30254 | -1/Command | Destroyed 11 combat bots 30272 | -1/Command | Disengaged cave seal 30272 | -1/Command | Wild derelicts emerged from the dark tunnel 30497 | -1/Command | Upgraded with Utility slot (x1) 30501 | -1/Command | First assault squad dispatched 30507 | -1/Command | Destroyed 9 combat bots 30563 | -1/Command | Spotted B-99 Colossus 30618 | -1/Command | Spotted Executioner 30618 | -1/Command | Spotted Striker 30619 | -1/Command | Spotted Executioner 30619 | -1/Command | Spotted Alpha 7 30643 | -1/Command | Spotted B-99 Colossus 30651 | -1/Command | Spotted B-99 Colossus 30655 | -1/Command | Spotted Executioner 30698 | -1/Command | Disengaged cave seal 30746 | -1/Command | Found Prototype Processor 30747 | -1/Command | Identified Exp. Target Analyzer 30768 | -1/Command | Phase Generator disabled 30914 | -1/Command | Identified Subatomic Replicator 30914 | -1/Command | Used Subatomic Replicator to replicate Hyp. EM Gauss Rifle 31201 | -1/Command | Lost 3 allies 31279 | -1/Command | Spotted Executioner 31279 | -1/Command | Spotted Striker 31279 | -1/Command | Spotted Alpha 7 31279 | -1/Command | Discovered new exit (range 7) 32239 | -1/Command | Rewired Executioner 32246 | -1/Command | Found Exp. Core Analyzer 32248 | -1/Command | Core integrity fell below 50% 32341 | -1/Command | Rewired Striker 32640 | -1/Command | Build established: Commander-Sprinter 32834 | -1/Command | Scrapoid reinforcements arrived 33192 | -1/Command | Destroyed B-99 Colossus 33356 | -1/Command | Repaired Adv. Remote Datajack 33400 | -1/Command | Core integrity fell below 20% 33488 | -1/Command | Self-destructed Last Messages --------------- 33459_ Slug penetrates Wall. 33461_ HV-EM Slug penetrates H-88 Terminator. 33461_ H-88 Terminator shuts down. 33461_ HV-EM Slug penetrates Wall. 33466_ HV-EM Slug penetrates H-88 Terminator. 33466_ HV-EM Slug penetrates Door. 33466_ Door malfunctions. 33469_ S-43 Plague destroyed. 33469_ HV-EM Slug penetrates H-88 Terminator. 33475_ Navigation matrix triggers involuntary quantum shift. 33475_ Discarded Asb. Alloy Leg. 33475_ Asb. Alloy Armor destroyed. 33476_ GOLEM Unit beginning Asb. Alloy Leg integration. 33481_ Navigation matrix triggers involuntary quantum shift. 33484_ Asb. Suspension Frame destroyed. 33486_ Used Protomatter to restore core integrity (+90, depleted) Map ----- +----------------------------------------------------+ | | | | | | | | | | | | | | | | | | | | | | | | | | | ??????##### # #?????????????????????????????????? | | ??????# ################??????????????????? | | ??????# ! ] # #??????????????????? | | ????###* ! ] ## ###########????????? | | ????# " !]] #; """ # """"" #????????? | | ????##" = [ # "R| "" + ""T"" #?????#### | | ????#!" !/%* ;; """ """" # #?????# " | | ????##"#"#/###### "" """" # = ####### " | | ???# ###!!] # "" # + + " | | ?? ##?#== /s # ####### " | | # #???# # # #?????# | | #????# #s !*= # #?????# | | #?????# ;s ! =@= #####/#####?????# | | #??????# #########;######## ########### | | #???????# #???????#! ! #### | | ????????# #???????#= !] | | ????????# ##??????# *%[ ^ | | ????????# "######## == | | ????????# "" | | ????????# [ % """"^ | | ????????# ###![! """" | | ????????# #?#%!%= "" == | | ????????# #?#[=* [%! | | ??#####?# #?#=[=%% """"T"""" | | ??# #?# #?# """"""""""" | | ??# #?# #?# ##/########; #################### | | ### #?# #?#! # ## #??????????????????? | | ### #### #?# # ## #??????????????????? | | #?# # ##![#??????????????????? | | #?# # ##=%##???#######???????? | | * #?# # ##!=[#???# #???????? | | =%*%= #?# # ! ## #???# #???????? | | #### #### #?# # ## ##???# #???????? | | #?# #?# #?# ########"### #????# #???????? | | ??# #?# ### ##### ### ###### #???????? | | ??# #?# T" # #???????? | | ??#####?# "" / #???????? | +----------------------------------------------------+ Best States ------------- Heat Dissipation 118 Energy Generation 104 Energy Capacity 1950 Matter Stores 300 Matter Capacity 300 Sight Range 22 Robot Scan Range 20 Terrain Scan Range 16 Terrain Scan Density 510 ECM Strength 2 Cloak Strength 4 Additional Mass Support 20 EM Shielding 3 Armor Coverage 800 Resistance: KI 35 Resistance: TH 50 Resistance: EX 35 Resistance: EM 95 Resistance: I 35 Resistance: S 35 Resistance: P 35 Weapon Shielding 100 Weapon Cycling 25 Phase Shifting 20 Evasion (%) 95 Targeting Accuracy 6 Target Analysis 10 Core Analysis 12 Armor Integrity Analysis 40 Particle Charging 25 Salvage Targeting 3 Offensive Hacking 30 Defensive Hacking 5 Item Schematics ----------------- Imp. Arc Projector | -6/Zion | Archive EM Disruption Field | -6/Zion | Archive Fusion Compressor | -6/Zion | Archive Neutrino Core | -6/Zion | Archive Adv. Coolant Injector | -6/Zion | Archive Hyp. Gauss Rifle | -6/Zion | Archive Imp. Weapon Cycler | -6/Zion | Archive Imp. Thermal Generator | -6/Zion | Archive Disruptor Cannon | -6/Zion | Archive Force Field | -6/Zion | Archive Lrn. Proton Cannon | -6/Zion | Archive Imp. System Restoration Module | -6/Zion | Archive Imp. Kinecellerator | -6/Zion | Archive Energy Well | -6/Zion | Archive Railgun | -6/Zion | Archive Q-thruster | -4/Hub_04(d) | Hacked Prc. Phase Gun | -3/Quarantine | Archive Centrium Greatsword | -3/Section 7 | Archive Gravity Flail | -3/Section 7 | Archive Lgt. Antimatter Cannon | -3/Section 7 | Archive Prc. Matter Filter | -3/Section 7 | Archive Exp. Targeting Computer | -3/Section 7 | Archive Imp. Energy Well | -3/Section 7 | Archive Imp. Diametric Drive | -3/Section 7 | Archive Exp. Heat Sink | -3/Section 7 | Archive Neutron Missile Launcher | -3/Section 7 | Archive Lgt. Regenerative Plating | -2/Testing | Hacked Med. Regenerative Plating | -2/Testing | Hacked Hvy. Regenerative Plating | -2/Testing | Hacked Robot Schematics ------------------ A-02 Transporter | -6/Zion | Archive T-07 Excavator | -6/Zion | Archive R-10 Processor | -6/Zion | Archive S-43 Plague | -3/Quarantine | Archive E-15 Imp | -3/Quarantine | Archive G-67 Veteran | -3/Quarantine | Archive C-55 Analyst | -3/Section 7 | Archive Fabricated ------------ O-24 Administrator | x1 | -6/Factory | Preloaded Quantum Reactor | x2 | -3/Research | Preloaded A-02 Transporter | x1 | -3/Research Alien Tech Used ----------------- Integrated Dissipator Navigation Efficiency Matrix Integrity Redistributor Integrated Reactor LRC Inertial Stabilizer Core Physics Calibrator Subatomic Replicator Achievements -------------- None Challenges ------------ None RPGLIKE | -11 -10 -10 -8 -8 -6 -6 -6 -6 -6 -5 -5 -5 -5 -5 -4 -4 -4 -4 -4 -4 -4 -4 -3 -3 -3 -2 -2 -1 -1 --------- Run | Yrd Mat Sub Rec Scr Fac Low Low Zio Dee Pro Fac Upp Upp War Pro Fac Was Fac Ext Cet Arc Hub Res Qua Sec Res Tes Acc Com Levels Raised 34 | . 3 1 3 . 6 1 1 1 1 3 2 . . 1 1 . . 1 1 . . 1 2 . 1 1 1 1 1 XP Earned 56293 | 4000 4697 1613 4711 650 8756 1150 2134 604 1408 4472 2936 657 694 508 1159 1107 67 1411 1087 300 189 1071 2664 746 950 1599 683 2052 2218 XP Spent 54135 | 2000 2660 4050 4150 1100 2000 5700 4500 . 2975 3200 2150 . . 3500 . . . . 3800 800 . 1400 2600 750 1300 1400 . . 4100 Upgrades 79 | 4 11 5 9 1 1 3 2 . 23 1 5 . . 1 . . . . 1 1 . 1 4 1 2 2 . . 1 Power Slot 2 | 1 . . . . . . . . . . . . . . . . . . . 1 . . . . . . . . . Propulsion Slot 4 | 1 . 1 1 . . . . . . . . . . . . . . . . . . 1 . . . . . . . Utility Slot 13 | 1 1 2 1 . 1 2 1 . . 1 . . . 1 . . . . 1 . . . . . . . . . 1 Weapon Slot 2 | 1 . . . . . 1 . . . . . . . . . . . . . . . . . . . . . . . Core Integrity 21 | . . . . . . . . . 21 . . . . . . . . . . . . . . . . . . . . Heat Dissipation 8 | . 8 . . . . . . . . . . . . . . . . . . . . . . . . . . . . Energy Generation 3 | . . . . . . . . . 1 . 2 . . . . . . . . . . . . . . . . . . Mass Support 4 | . . . 2 1 . . 1 . . . . . . . . . . . . . . . . . . . . . . Inventory Capacity 3 | . . 2 . . . . . . . . . . . . . . . . . . . . . 1 . . . . . Sensor Range 1 | . . . . . . . . . 1 . . . . . . . . . . . . . . . . . . . . Terrain Scan Density 5 | . . . 5 . . . . . . . . . . . . . . . . . . . . . . . . . . Ranged Accuracy 4 | . 2 . . . . . . . . . . . . . . . . . . . . . . . 2 . . . . Hack Attack % 4 | . . . . . . . . . . . 2 . . . . . . . . . . . . . . 2 . . . Hack Defense % 1 | . . . . . . . . . . . 1 . . . . . . . . . . . . . . . . . . TH Damage % 4 | . . . . . . . . . . . . . . . . . . . . . . . 4 . . . . . . Protomatter Created 11059 | . 431 . 67 . 479 225 68 . 2195 457 249 118 177 . 85 . . 497 584 69 246 726 1198 344 1289 345 . 255 955 Integrity Restored 14995 | . 427 15 379 . 1115 472 219 . 4366 409 425 214 481 69 146 74 . 458 580 200 12 549 792 272 1042 218 . 387 1674 Core 11627 | . 374 15 233 . 830 226 20 . 3735 301 372 161 357 54 131 40 . 337 436 121 12 405 475 193 866 176 . 387 1370 Parts 3368 | . 53 . 146 . 285 246 199 . 631 108 53 53 124 15 15 34 . 121 144 79 . 144 317 79 176 42 . . 304 Protomatter Decayed 11547 | . 208 31 71 . 103 63 334 . 638 521 483 73 288 798 121 . . 796 616 . 242 784 3009 214 512 276 20 . 1346 Game ------ Seed SubatomicActiveBotcube Manual? 0 Play Time 07:45:25 Cumulative 218.9 hours Start 2025.02.24 @ 19:00:41 End 2025.03.03 @ 07:46:33 Sessions 13 Manual Loads 0 Difficulty Adventurer Special Mode Winter2019/RPGLIKE Game No. 97 Rogue 0 Adventurer 97 Explorer 0 Win Type - Total 8 Types 2/1/2/2/1/0/0/0/0 Lore% 78 Gallery% 69 Achievement% 75 Wizard Run 0 Options --------- Layout 2 ASCII 0 Keyboard 0 Movement Numpad Keybinds 0 Fullscreen 2 Font 24/Smallcaps Map View 50x44 Zoom Use 0% Tactical HUD 1 Map Filters NONE Filters NONE Steam 1 RUN: f8fa7258-de46-491a-af5a-f93edde66d35